Document Date,Purchase Order No,Line Item No,Supplier ID,Supplier Name,Pro Class,Pro Class Description,Description of Goods (Purpose of expenditure look up),Service/Department   (SAP Hierarchy Position),Expense Area (cost centre desc),Net Order Value Over 5000.00 (line item value shown here),GL Code,Cost Centre/WBS
02/11/2022,ZAV715059,1,35,CBC Computer Systems Ltd,181800,Environmental Services Technical Equipment ,Furniture and Equipment,Corporate and Support Services,IT AVA Non - SLA,"4,090.00",400110,13001
02/11/2022,ZAV715059,2,35,CBC Computer Systems Ltd,181800,Environmental Services Technical Equipment ,Furniture and Equipment,Corporate and Support Services,IT AVA Non - SLA,195.00,400110,13001
02/11/2022,ZAV715059,3,35,CBC Computer Systems Ltd,181800,Environmental Services Technical Equipment ,Furniture and Equipment,Corporate and Support Services,IT AVA Non - SLA,825.00,400110,13001
10/11/2022,ZAV715486,1,12402,VeryPC Ltd,270000,Information Communication Technology  ,Information and Communications Technology,Corporate and Support Services,IT AVA Non - SLA,697.68,402001,13001
10/11/2022,ZAV715486,2,12402,VeryPC Ltd,270000,Information Communication Technology  ,Information and Communications Technology,Corporate and Support Services,IT AVA Non - SLA,"4,986.63",402001,13001
10/11/2022,ZAV715486,3,12402,VeryPC Ltd,270000,Information Communication Technology  ,Information and Communications Technology,Corporate and Support Services,IT AVA Non - SLA,9.00,402001,13001
15/12/2022,ZAV716998,1,15171,Intec Microsystems,210000,Furniture & Soft Furnishings  ,Furniture and Equipment,Corporate and Support Services,IT AVA Non - SLA,"5,072.00",400105,13001
15/12/2022,ZAV716998,2,15171,Intec Microsystems,210000,Furniture & Soft Furnishings  ,Furniture and Equipment,Corporate and Support Services,IT AVA Non - SLA,153.09,400105,13001
15/12/2022,ZAV716998,3,15171,Intec Microsystems,210000,Furniture & Soft Furnishings  ,Furniture and Equipment,Corporate and Support Services,IT AVA Non - SLA,20.00,400105,13001
07/11/2022,ZES715292,1,35,CBC Computer Systems Ltd,270000,Information Communication Technology  ,Information and Communications Technology,Services to People,INT B Staffing,"3,225.00",402001,12897
07/11/2022,ZES715292,2,35,CBC Computer Systems Ltd,270000,Information Communication Technology  ,Information and Communications Technology,Services to People,INT B Staffing,148.75,402001,12897
07/11/2022,ZES715292,3,35,CBC Computer Systems Ltd,270000,Information Communication Technology  ,Information and Communications Technology,Services to People,INT B Staffing,223.75,402001,12897
07/11/2022,ZES715292,4,35,CBC Computer Systems Ltd,270000,Information Communication Technology  ,Information and Communications Technology,Services to People,INT B Staffing,"4,900.00",402001,12897
30/12/2022,ZES717371,1,2927,XMA Ltd,270000,Information Communication Technology  ,Information and Communications Technology,Corporate and Support Services,IT Infrastructure,"17,623.35",402001,11324
08/11/2022,ZFC715321,1,6698,Brook Edgeley Specialist te,390000,"Works - Construction, Repair & Maintenance  ",Repairs and Maintenance,Services to Place,SPB Operational Est.,"5,410.00",200123,11662
01/12/2022,ZFC716393,1,10897,Three Sixty SHG Ltd,390000,"Works - Construction, Repair & Maintenance  ",Repairs and Maintenance,Services to Place,SPB Operational Est.,"13,791.00",200100,11662
11/10/2022,ZHS714148,1,12200,Cadent Gas Limited,390000,"Works - Construction, Repair & Maintenance  ",Capital Expenditure - Works,#N/A,#N/A,"10,016.67",200311,C.10937.002
03/11/2022,ZHS715116,1,13602,Simon Fenton Partnerships LLP,390000,"Works - Construction, Repair & Maintenance  ",Capital Expenditure - Works,#N/A,#N/A,"8,332.00",200311,C.11016.002
18/11/2022,ZHS715830,1,485,NBS t/a RIBA ENTERPRISES LTD,390000,"Works - Construction, Repair & Maintenance  ",Capital Expenditure - Works,#N/A,#N/A,"5,301.45",200311,C.11644.015
21/12/2022,ZHS717234,1,7223,ROGER HANNAH &CO (Legal Fees),390000,"Works - Construction, Repair & Maintenance  ",Capital Expenditure - Works,#N/A,#N/A,"5,500.00",200311,C.11016.002
01/12/2022,ZPC716361,1,4369,Pennine Care NHS Trust,310000,Healthcare  ,Third party payments - Public Sector,Services to People,Pendlebury Jigsaw,"22,496.41",500402,12709
01/12/2022,ZPC716361,2,4369,Pennine Care NHS Trust,310000,Healthcare  ,Third party payments - Public Sector,Services to People,Pendlebury Jigsaw,"3,804.01",500402,12709
01/12/2022,ZPC716361,3,4369,Pennine Care NHS Trust,310000,Healthcare  ,Third party payments - Public Sector,Services to People,Pendlebury Jigsaw,856.04,500402,12709
01/12/2022,ZPC716361,4,4369,Pennine Care NHS Trust,310000,Healthcare  ,Third party payments - Public Sector,Services to People,Pendlebury Jigsaw,"17,650.78",500402,12709
01/12/2022,ZPC716361,5,4369,Pennine Care NHS Trust,310000,Healthcare  ,Third party payments - Public Sector,Services to People,Pendlebury Jigsaw,"3,495.75",500402,12709
04/10/2022,ZSB713733,1,5981,EUROLYNX (TAXIS) LTD,361511,Human Resources Travel & Subsistence Taxi Fares,Travelling Expenses,Services to People,Highfields PRU,"3,701.50",300502,10329
04/10/2022,ZSB713733,2,5981,EUROLYNX (TAXIS) LTD,361511,Human Resources Travel & Subsistence Taxi Fares,Travelling Expenses,Services to People,Highfields PRU,"2,322.10",300502,10329
04/10/2022,ZSB713733,3,5981,EUROLYNX (TAXIS) LTD,361511,Human Resources Travel & Subsistence Taxi Fares,Travelling Expenses,Services to People,Highfields PRU,"6,943.75",300502,10329
05/10/2022,ZSB713780,1,15339,Aspen Woodwork Ltd,181800,Environmental Services Technical Equipment ,Furniture and Equipment,Services to People,Highfields PRU,"12,490.00",400110,10329
31/10/2022,ZSB714953,1,15397,Northern Commercials,320000,Social Community Care Supplies & Services  ,Care Payments,Services to People,Highfields PRU,"35,231.85",530356,10329
01/11/2022,ZSB715000,1,11200,Arthur J Gallagher (Heath Lamb,150000,Consultancy   ,Professional Fees,Services to People,Highfields PRU,"5,054.64",401020,10329
02/11/2022,ZSB715048,1,10475,Brighter Futures Education and,170000,Education  ,Fees and Charges,Services to People,Highfields PRU,"5,676.00",401033,10329
08/12/2022,ZSB716709,1,5981,EUROLYNX (TAXIS) LTD,381600,Vehicle Management Hire/Leasing ,Leasing /Transport Hire,Services to People,Highfields PRU,"3,063.50",300302,10329
08/12/2022,ZSB716709,2,5981,EUROLYNX (TAXIS) LTD,381600,Vehicle Management Hire/Leasing ,Leasing /Transport Hire,Services to People,Highfields PRU,"5,168.02",300302,10329
13/12/2022,ZSB716931,1,15012,OM Property UK Limited,150000,Consultancy   ,Professional Fees,Services to People,Highfields PRU,"6,594.00",401020,10329
22/12/2022,ZSB717279,1,14568,Arthur J. Gallagher Ins (Actur,150000,Consultancy   ,Professional Fees,Services to People,Highfields PRU,"5,054.64",401020,10329
05/10/2022,ZZC713792,1,14901,Focus Mental Health,999999,Fees and Charges,Fees and Charges,Services to People,RAA - ASF Grant,"5,000.00",401035,12968
05/10/2022,ZZC713793,1,4026,Adoption UK,150000,Consultancy   ,Professional Fees,Services to People,RAA Adoption Count,"14,675.90",401020,12957
06/10/2022,ZZC713893,1,4070,Glen Jakes Nursery,320000,Social Community Care Supplies & Services  ,Care Payments,Services to People,H&R Client Spend,"10,815.96",530356,13143
10/10/2022,ZZC714027,1,11367,Worldwide Languages Ltd,261100,Human Resources Interpretation & Translation ,Professional Fees,Services to People,Incl - S.I.U - Perip,"6,665.00",401023,10307
18/10/2022,ZZC714391,1,12675,Tiptoes Child Therapy Services,999999,Fees and Charges,Fees and Charges,Services to People,RAA - ASF Grant,"9,590.00",401035,12968
18/10/2022,ZZC714392,1,12298,One Education Ltd,999999,Fees and Charges,Fees and Charges,Services to People,RAA - ASF Grant,"5,445.00",401035,12968
18/10/2022,ZZC714444,1,11466,High Peak School Ltd,261500,Human Resources Training & Conferences ,Fees and Charges,Services to People,SEN Independent Sch,"32,661.53",401024,10372
18/10/2022,ZZC714445,1,11466,High Peak School Ltd,261500,Human Resources Training & Conferences ,Fees and Charges,Services to People,SEN Independent Sch,"32,490.95",401024,10372
18/10/2022,ZZC714446,1,11466,High Peak School Ltd,261500,Human Resources Training & Conferences ,Fees and Charges,Services to People,SEN Independent Sch,"31,078.30",401024,10372
20/10/2022,ZZC714551,1,12501,Nugent Care,320000,Social Community Care Supplies & Services  ,Care Payments,Services to People,EP - Residential,"113,400.00",530325,11449
24/10/2022,ZZC714705,1,12675,Tiptoes Child Therapy Services,999999,Fees and Charges,Fees and Charges,Services to People,RAA - ASF Grant,"5,000.00",401035,12968
26/10/2022,ZZC714789,1,11242,Gateway Psychology Ltd,999999,Fees and Charges,Fees and Charges,Services to People,RAA - ASF Grant,"8,050.00",401035,12968
26/10/2022,ZZC714807,1,7362,The Heatons Conference Centre,190000,Facilities & Management Services  ,Office Expenses,Services to People,RAA Adoption Count,"10,764.00",400705,12957
27/10/2022,ZZC714846,1,13852,The Gift Voucher Shop UK Ltd,320000,Social Community Care Supplies & Services  ,Care Payments,Services to People,SC - Leaving Care,"5,550.00",530313,11501
02/11/2022,ZZC715047,1,15409,Dr Polly Nugent,260000,Human Resources  ,Staff Training,Services to People,Staying Close,"5,538.27",102020,13191
10/11/2022,ZZC715492,1,11367,Worldwide Languages Ltd,261100,Human Resources Interpretation & Translation ,Professional Fees,Services to People,Incl - S.I.U - Perip,"15,780.00",401023,10307
11/11/2022,ZZC715501,1,12675,Tiptoes Child Therapy Services,999999,Fees and Charges,Fees and Charges,Services to People,RAA - ASF Grant,"10,880.00",401035,12968
11/11/2022,ZZC715502,1,12675,Tiptoes Child Therapy Services,999999,Fees and Charges,Fees and Charges,Services to People,RAA - ASF Grant,"5,270.00",401035,12968
14/11/2022,ZZC715549,1,12298,One Education Ltd,999999,Fees and Charges,Fees and Charges,Services to People,RAA - ASF Grant,"5,445.00",401035,12968
14/11/2022,ZZC715551,1,11308,Chroma Therapies Ltd,999999,Fees and Charges,Fees and Charges,Services to People,RAA - ASF Grant,"5,616.00",401035,12968
14/11/2022,ZZC715553,1,12706,NEW ROOTS THERAPY NW,999999,Fees and Charges,Fees and Charges,Services to People,RAA - ASF Grant,"5,000.00",401035,12968
14/11/2022,ZZC715566,1,12705,Acorn Therapy,999999,Fees and Charges,Fees and Charges,Services to People,RAA - ASF Grant,"2,032.50",401035,12968
14/11/2022,ZZC715566,2,12705,Acorn Therapy,999999,Fees and Charges,Fees and Charges,Services to People,RAA - ASF Grant,"3,005.00",401035,12968
17/11/2022,ZZC715724,1,5555,MANCHESTER DEAF CENTRE LTD,261100,Human Resources Interpretation & Translation ,Professional Fees,Services to People,Incl - S.I.U - Perip,"7,121.40",401023,10307
17/11/2022,ZZC715725,1,2104,Central Manchester University,150000,Consultancy   ,Professional Fees,Services to People,RAA - Ctr Excellence,"224,822.00",401020,12967
28/11/2022,ZZC716159,1,12675,Tiptoes Child Therapy Services,999999,Fees and Charges,Fees and Charges,Services to People,RAA - ASF Grant,"9,520.00",401035,12968
28/11/2022,ZZC716160,1,12675,Tiptoes Child Therapy Services,999999,Fees and Charges,Fees and Charges,Services to People,RAA - ASF Grant,"7,910.00",401035,12968
28/11/2022,ZZC716161,1,13020,Intraquest Limited,999999,Fees and Charges,Fees and Charges,Services to People,RAA - ASF Grant,"4,235.00",401035,12968
28/11/2022,ZZC716161,2,13020,Intraquest Limited,999999,Fees and Charges,Fees and Charges,Services to People,RAA - ASF Grant,"4,890.00",401035,12968
06/12/2022,ZZC716575,1,11367,Worldwide Languages Ltd,261100,Human Resources Interpretation & Translation ,Professional Fees,Services to People,Incl - S.I.U - Perip,"9,215.00",401023,10307
09/12/2022,ZZC716723,1,13020,Intraquest Limited,150000,Consultancy   ,Professional Fees,Services to People,GO/HG Client spend,"5,945.00",401020,13147
09/12/2022,ZZC716723,2,13020,Intraquest Limited,150000,Consultancy   ,Professional Fees,Services to People,GO/HG Client spend,"4,062.20",401020,13147
13/12/2022,ZZC716864,1,14902,Confidentials,190000,Facilities & Management Services  ,Office Expenses,Services to People,RAA Adoption Count,"5,000.00",400700,12957
13/12/2022,ZZC716865,1,12675,Tiptoes Child Therapy Services,999999,Fees and Charges,Fees and Charges,Services to People,RAA - ASF Grant,"8,040.00",401035,12968
13/12/2022,ZZC716906,1,9190,Equilibrium and Enablement Ltd,999999,Fees and Charges,Fees and Charges,Services to People,FP - Fost & Adop Pan,"3,698.00",401035,10066
13/12/2022,ZZC716906,2,9190,Equilibrium and Enablement Ltd,999999,Fees and Charges,Fees and Charges,Services to People,FP - Fost & Adop Pan,"3,901.00",401035,10066
14/12/2022,ZZC716980,1,5555,MANCHESTER DEAF CENTRE LTD,261100,Human Resources Interpretation & Translation ,Professional Fees,Services to People,Incl - S.I.U - Perip,"6,509.82",401023,10307
22/12/2022,ZZC717301,1,12675,Tiptoes Child Therapy Services,999999,Fees and Charges,Fees and Charges,Services to People,RAA - ASF Grant,"7,910.00",401035,12968
03/10/2022,ZZH713680,1,12578,Child Safety Media,290000,Arts & Leisure Services  ,Publicity and Promotion,Services to People,GMCA CS Grant,"5,145.00",401801,11505
03/10/2022,ZZH713687,1,5131,FUTURE DESIGN CONSULTANTS,150000,Consultancy   ,Professional Fees,Corporate and Support Services,One Stockport,"5,380.00",401007,13186
04/10/2022,ZZH713722,1,3529,Totally Local Company Ltd,130000,Cleaning & Janitorial  ,Cleaning,Services to People,EHP CC Reddish Vale,"8,728.59",201602,12294
05/10/2022,ZZH713800,1,8236,STOCKPORT WITHOUT ABUSE,390000,Supplies and services,Supplies and services,Services to People,Domestic Abuse,"34,320.00",401600,12852
05/10/2022,ZZH713801,1,8236,STOCKPORT WITHOUT ABUSE,390000,Supplies and services,Supplies and services,Services to People,Domestic Abuse Bill,"34,320.00",401600,13111
05/10/2022,ZZH713802,1,8236,STOCKPORT WITHOUT ABUSE,390000,Supplies and services,Supplies and services,Services to People,Domestic Abuse Bill,"8,000.00",401600,13111
05/10/2022,ZZH713809,1,1051,Alma Lodge Hotel,290000,Arts & Leisure Services  ,Publicity and Promotion,Services to People,FP - Fostering Staff,"5,000.00",401801,11489
05/10/2022,ZZH713810,1,10985,Broadstones School Ltd,261500,Human Resources Training & Conferences ,Fees and Charges,Services to People,SEN Independent Sch,"21,450.00",401024,10372
05/10/2022,ZZH713823,1,216,Manchester City Council,999999,Third party payments - Public Sector,Third party payments - Public Sector,Services to People,Regional Imp Allianc,"38,919.00",500303,13031
05/10/2022,ZZH713828,1,6116,Atkins Limited,150000,Consultancy   ,Professional Fees,Services to Place,MS Design Frnwk Staf,"19,800.00",401020,13107
05/10/2022,ZZH713829,1,7183,BLACKBURN WITH DARWEN,999999,Third party payments - Public Sector,Third party payments - Public Sector,Services to People,Regional Imp Allianc,"38,919.00",500303,13031
05/10/2022,ZZH713830,1,7216,Blackpool Council.,999999,Third party payments - Public Sector,Third party payments - Public Sector,Services to People,Regional Imp Allianc,"38,919.00",500303,13031
05/10/2022,ZZH713831,1,2109,Rochdale MBC,999999,Third party payments - Public Sector,Third party payments - Public Sector,Services to People,Regional Imp Allianc,"38,919.00",500303,13031
05/10/2022,ZZH713833,1,3707,Salford City Council/Finance,999999,Third party payments - Public Sector,Third party payments - Public Sector,Services to People,Regional Imp Allianc,"49,972.00",500303,13031
05/10/2022,ZZH713855,1,13233,MetDesk Limited,390000,"Works - Construction, Repair & Maintenance  ",Repairs and Maintenance,Services to Place,Gritting,"6,560.86",200123,12033
06/10/2022,ZZH713871,1,3529,Totally Local Company Ltd,290000,Arts & Leisure Services  ,Publicity and Promotion,Services to Place,Borough Festive Ligh,"36,595.00",401801,12654
06/10/2022,ZZH713882,1,3529,Totally Local Company Ltd,230000,Highway Equipment & Materials�   ,Highways Maintenance,Services to Place,Berevement Services,"6,240.00",202056,11285
06/10/2022,ZZH713894,1,757,Transport for Greater Manchest,170000,Education  ,Welfare Payments,Services to People,SS-FreeSclTrans-Pri,582.00,530102,10429
06/10/2022,ZZH713894,2,757,Transport for Greater Manchest,170000,Education  ,Welfare Payments,Services to People,SS-FreeSclTrans-Sec,"67,977.60",530102,10430
06/10/2022,ZZH713921,1,3529,Totally Local Company Ltd,390000,Supplies and services,Supplies and services,Services to Place,Climate Change Now,"12,200.00",401600,13112
06/10/2022,ZZH713921,2,3529,Totally Local Company Ltd,390000,Supplies and services,Supplies and services,Services to Place,Climate Change Now,"6,600.00",401600,13112
07/10/2022,ZZH713935,1,1051,Alma Lodge Hotel,190000,Facilities & Management Services  ,Office Expenses,Services to People,SI - Advisers,"13,500.00",400705,10727
07/10/2022,ZZH713935,2,1051,Alma Lodge Hotel,190000,Facilities & Management Services  ,Office Expenses,Services to People,SI - Advisers,"2,500.00",400705,10727
07/10/2022,ZZH713945,1,3529,Totally Local Company Ltd,390000,"Works - Construction, Repair & Maintenance  ",Repairs and Maintenance,Services to Place,Merseyway Redrock CP,"18,209.73",200123,10045
07/10/2022,ZZH713980,1,3529,Totally Local Company Ltd,390000,"Works - Construction, Repair & Maintenance  ",Repairs and Maintenance,#N/A,#N/A,"18,209.73",200123,C.01498.201
07/10/2022,ZZH713989,1,6116,Atkins Limited,150000,Consultancy   ,Professional Fees,Services to Place,Feasibility,"27,418.56",401020,13062
07/10/2022,ZZH713990,1,4272,Civica UK Ltd,200000,Financial Services  ,Fees and Charges,Corporate and Support Services,Public Libraries Gen,"26,000.00",402401,11329
10/10/2022,ZZH714008,1,6116,Atkins Limited,150000,Consultancy   ,Professional Fees,Services to Place,Feasibility,"45,697.60",401020,13062
10/10/2022,ZZH714009,1,6116,Atkins Limited,150000,Consultancy   ,Professional Fees,Services to Place,Feasibility,"39,332.80",401020,13062
10/10/2022,ZZH714011,1,3529,Totally Local Company Ltd,390000,"Works - Construction, Repair & Maintenance  ",Capital Expenditure - Works,#N/A,#N/A,"58,939.44",200304,C.01551.203
10/10/2022,ZZH714012,1,8106,Tarmac Trading Ltd,390000,Supplies and services,Supplies and services,#N/A,#N/A,"49,288.67",401600,C.01454.203
10/10/2022,ZZH714013,1,757,Transport for Greater Manchest,390000,"Works - Construction, Repair & Maintenance  ",Capital Expenditure - Works,#N/A,#N/A,"40,796.00",200304,C.01454.203
10/10/2022,ZZH714036,1,14222,Big Blue Door Limited,270000,Information Communication Technology  ,Information and Communications Technology,Services to People,Regional Imp Allianc,"39,555.00",402004,13031
10/10/2022,ZZH714038,1,3529,Totally Local Company Ltd,240000,Horticultural  ,Grounds Maintenance,Services to People,Schools Contingency,"17,793.13",202030,10437
10/10/2022,ZZH714044,1,4369,Pennine Care NHS Trust,999999,Fees and Charges,Fees and Charges,Services to People,MH Admin East,"68,543.25",402404,12981
10/10/2022,ZZH714052,1,780,J A Jones + Sons,181800,Environmental Services Technical Equipment ,Furniture and Equipment,Services to Place,Climate Change Now,"4,788.00",400110,13112
10/10/2022,ZZH714052,2,780,J A Jones + Sons,181800,Environmental Services Technical Equipment ,Furniture and Equipment,Services to Place,Climate Change Now,"1,292.00",400110,13112
10/10/2022,ZZH714052,3,780,J A Jones + Sons,181800,Environmental Services Technical Equipment ,Furniture and Equipment,Services to Place,Climate Change Now,228.00,400110,13112
10/10/2022,ZZH714052,4,780,J A Jones + Sons,181800,Environmental Services Technical Equipment ,Furniture and Equipment,Services to Place,Climate Change Now,"2,225.00",400110,13112
10/10/2022,ZZH714052,5,780,J A Jones + Sons,181800,Environmental Services Technical Equipment ,Furniture and Equipment,Services to Place,Climate Change Now,672.00,400110,13112
10/10/2022,ZZH714052,6,780,J A Jones + Sons,181800,Environmental Services Technical Equipment ,Furniture and Equipment,Services to Place,Climate Change Now,672.00,400110,13112
10/10/2022,ZZH714052,7,780,J A Jones + Sons,181800,Environmental Services Technical Equipment ,Furniture and Equipment,Services to Place,Climate Change Now,980.00,400110,13112
10/10/2022,ZZH714052,8,780,J A Jones + Sons,181800,Environmental Services Technical Equipment ,Furniture and Equipment,Services to Place,Climate Change Now,468.00,400110,13112
10/10/2022,ZZH714052,9,780,J A Jones + Sons,181800,Environmental Services Technical Equipment ,Furniture and Equipment,Services to Place,Climate Change Now,702.00,400110,13112
10/10/2022,ZZH714052,10,780,J A Jones + Sons,181800,Environmental Services Technical Equipment ,Furniture and Equipment,Services to Place,Climate Change Now,222.00,400110,13112
10/10/2022,ZZH714052,11,780,J A Jones + Sons,181800,Environmental Services Technical Equipment ,Furniture and Equipment,Services to Place,Climate Change Now,65.00,400110,13112
10/10/2022,ZZH714061,1,12193,Greater Manchester Combined Au,390000,"Works - Construction, Repair & Maintenance  ",Capital Expenditure - Works,#N/A,#N/A,"40,796.00",200304,C.01454.203
10/10/2022,ZZH714062,1,3529,Totally Local Company Ltd,390000,Supplies and services,Supplies and services,#N/A,#N/A,"144,802.54",401600,C.01454.203
10/10/2022,ZZH714079,1,15328,Elite Consulting & Training,150000,Consultancy   ,Professional Fees,Services to People,Adults Management,"58,500.00",401007,11873
10/10/2022,ZZH714088,1,13860,Howard Lynn Property Ltd,261400,Human Resources Temporary & Agency Staff ,Agency Staff,Services to Place,Property Client Acct,"5,683.21",100290,12328
11/10/2022,ZZH714092,1,1342,UK Container Maintenance Ltd,182020,Environmental Services Waste Management,Waste Management Equipment,Services to Place,Bulk Container,748.00,400401,10883
11/10/2022,ZZH714092,2,1342,UK Container Maintenance Ltd,182020,Environmental Services Waste Management,Waste Management Equipment,Services to Place,Bulk Container,374.00,400401,10883
11/10/2022,ZZH714092,3,1342,UK Container Maintenance Ltd,182020,Environmental Services Waste Management,Waste Management Equipment,Services to Place,Bulk Container,187.00,400401,10883
11/10/2022,ZZH714092,4,1342,UK Container Maintenance Ltd,182020,Environmental Services Waste Management,Waste Management Equipment,Services to Place,Bulk Container,"3,654.00",400401,10883
11/10/2022,ZZH714092,5,1342,UK Container Maintenance Ltd,182020,Environmental Services Waste Management,Waste Management Equipment,Services to Place,Bulk Container,"1,624.00",400401,10883
11/10/2022,ZZH714096,1,223,Groundwork Landscapes Ltd,240000,Horticultural  ,Grounds Maintenance,#N/A,#N/A,"58,645.76",202032,C.10775
11/10/2022,ZZH714117,1,12193,Greater Manchester Combined Au,150000,Consultancy   ,Professional Fees,#N/A,#N/A,"371,800.00",401007,C.01499.201
11/10/2022,ZZH714152,1,6116,Atkins Limited,150000,Consultancy   ,Professional Fees,Services to Place,Network Management,"45,697.60",401020,13179
11/10/2022,ZZH714153,1,4968,Network Rail Property,390000,Supplies and services,Supplies and services,#N/A,#N/A,"51,686.00",401600,C.01467.201
12/10/2022,ZZH714184,1,12180,Acorn Care and Education,261500,Human Resources Training & Conferences ,Fees and Charges,Services to People,SEN Independent Sch,"30,354.25",401024,10372
12/10/2022,ZZH714187,1,11466,High Peak School Ltd,261500,Human Resources Training & Conferences ,Fees and Charges,Services to People,SEN Independent Sch,"32,490.98",401024,10372
12/10/2022,ZZH714188,1,11466,High Peak School Ltd,261500,Human Resources Training & Conferences ,Fees and Charges,Services to People,SEN Independent Sch,"32,490.95",401024,10372
12/10/2022,ZZH714189,1,11466,High Peak School Ltd,261500,Human Resources Training & Conferences ,Fees and Charges,Services to People,SEN Independent Sch,"32,661.53",401024,10372
12/10/2022,ZZH714190,1,11466,High Peak School Ltd,261500,Human Resources Training & Conferences ,Fees and Charges,Services to People,SEN Independent Sch,"32,661.53",401024,10372
12/10/2022,ZZH714192,1,10985,Broadstones School Ltd,261500,Human Resources Training & Conferences ,Fees and Charges,Services to People,SEN Independent Sch,"18,250.00",401024,10372
12/10/2022,ZZH714201,1,5131,FUTURE DESIGN CONSULTANTS,150000,Consultancy   ,Professional Fees,Services to Place,Local Plan Project,"5,180.00",401007,12936
12/10/2022,ZZH714210,1,15378,Tile Hill Interim & Executive,999999,UNCLASSIFIED  ,MISCLASSIFIED? CHECK BEFORE PUBLICATION,Services to People,Heads of Service,"83,520.00",100100,11590
12/10/2022,ZZH714211,1,9177,Inivea Ltd,202000,Financial Services Rents ,Rents,Services to Place,Houldsworth Village,"107,679.75",200700,11314
13/10/2022,ZZH714235,1,10858,Acorn Recovery Projects,261500,Human Resources Training & Conferences ,Fees and Charges,Services to Place,Contin Educ Service,"76,297.04",401024,10511
13/10/2022,ZZH714272,1,683,AECOM Limited,150000,Consultancy   ,Professional Fees,Services to Place,Feasibility,"51,833.60",401020,13062
14/10/2022,ZZH714294,1,780,J A Jones + Sons,181800,Environmental Services Technical Equipment ,Furniture and Equipment,Services to Place,Climate Change Now,"1,050.00",400110,13112
14/10/2022,ZZH714294,2,780,J A Jones + Sons,181800,Environmental Services Technical Equipment ,Furniture and Equipment,Services to Place,Climate Change Now,"1,260.00",400110,13112
14/10/2022,ZZH714294,3,780,J A Jones + Sons,181800,Environmental Services Technical Equipment ,Furniture and Equipment,Services to Place,Climate Change Now,"1,050.00",400110,13112
14/10/2022,ZZH714294,4,780,J A Jones + Sons,181800,Environmental Services Technical Equipment ,Furniture and Equipment,Services to Place,Climate Change Now,"1,050.00",400110,13112
14/10/2022,ZZH714294,5,780,J A Jones + Sons,181800,Environmental Services Technical Equipment ,Furniture and Equipment,Services to Place,Climate Change Now,"1,530.00",400110,13112
14/10/2022,ZZH714294,6,780,J A Jones + Sons,181800,Environmental Services Technical Equipment ,Furniture and Equipment,Services to Place,Climate Change Now,"1,230.00",400110,13112
14/10/2022,ZZH714294,7,780,J A Jones + Sons,181800,Environmental Services Technical Equipment ,Furniture and Equipment,Services to Place,Climate Change Now,"1,590.00",400110,13112
14/10/2022,ZZH714294,8,780,J A Jones + Sons,181800,Environmental Services Technical Equipment ,Furniture and Equipment,Services to Place,Climate Change Now,600.00,400110,13112
14/10/2022,ZZH714294,9,780,J A Jones + Sons,181800,Environmental Services Technical Equipment ,Furniture and Equipment,Services to Place,Climate Change Now,540.00,400110,13112
14/10/2022,ZZH714294,10,780,J A Jones + Sons,181800,Environmental Services Technical Equipment ,Furniture and Equipment,Services to Place,Climate Change Now,"1,230.00",400110,13112
14/10/2022,ZZH714294,11,780,J A Jones + Sons,181800,Environmental Services Technical Equipment ,Furniture and Equipment,Services to Place,Climate Change Now,870.00,400110,13112
14/10/2022,ZZH714294,12,780,J A Jones + Sons,181800,Environmental Services Technical Equipment ,Furniture and Equipment,Services to Place,Climate Change Now,690.00,400110,13112
14/10/2022,ZZH714294,13,780,J A Jones + Sons,181800,Environmental Services Technical Equipment ,Furniture and Equipment,Services to Place,Climate Change Now,"1,380.00",400110,13112
14/10/2022,ZZH714294,14,780,J A Jones + Sons,181800,Environmental Services Technical Equipment ,Furniture and Equipment,Services to Place,Climate Change Now,"2,370.00",400110,13112
14/10/2022,ZZH714294,15,780,J A Jones + Sons,181800,Environmental Services Technical Equipment ,Furniture and Equipment,Services to Place,Climate Change Now,10.00,400110,13112
14/10/2022,ZZH714301,1,4272,Civica UK Ltd,270000,Information Communication Technology  ,Information and Communications Technology,Corporate and Support Services,Legal Services,"17,500.00",402001,11117
17/10/2022,ZZH714313,1,4272,Civica UK Ltd,150000,Consultancy   ,Professional Fees,Corporate and Support Services,Bentax,"5,790.00",401007,11139
17/10/2022,ZZH714324,1,15322,Mosaic Bramall Ltd,110000,Catering  ,Catering Supplies,Corporate and Support Services,Town Hall Events,"5,120.56",400420,11375
17/10/2022,ZZH714341,1,10394,Rebecca Bell (Integrate Educat,150000,Consultancy   ,Professional Fees,Services to People,SI M&B Grant,"5,050.00",401007,13041
17/10/2022,ZZH714388,1,6967,Wilde Consultants Ltd,150000,Consultancy   ,Professional Fees,Services to Place,MS Design Frnwk Staf,"107,916.00",401020,13107
17/10/2022,ZZH714389,1,6967,Wilde Consultants Ltd,150000,Consultancy   ,Professional Fees,Services to Place,MS Design Frnwk Staf,"124,660.00",401020,13107
17/10/2022,ZZH714390,1,6967,Wilde Consultants Ltd,150000,Consultancy   ,Professional Fees,Services to Place,MS Design Frnwk Staf,"107,916.00",401020,13107
18/10/2022,ZZH714400,1,7025,CBRE Limited,150000,Consultancy   ,Professional Fees,#N/A,#N/A,"32,800.00",401007,13198
18/10/2022,ZZH714408,1,3529,Totally Local Company Ltd,390000,Supplies and services,Supplies and services,Services to Place,Nature-Arboriculture,"12,510.00",401600,11281
18/10/2022,ZZH714416,1,7820,GMCA - GMUTC,999999,Social Community Care Supplies & Services  ,Service Contract Payments,Services to People,PH-Drug & Alcohol,"7,673.72",561704,12731
18/10/2022,ZZH714420,1,7648,Kier Construction Limited,150000,Consultancy   ,Professional Fees,#N/A,#N/A,"71,350.39",401020,C.10971
18/10/2022,ZZH714421,1,8233,MGB Plastics Ltd,182020,Environmental Services Waste Management,Waste Management Equipment,Services to Place,Wheelie Bins,"14,304.00",400401,10864
18/10/2022,ZZH714432,1,15082,Stockport Active CIC,999999,Social Community Care Supplies & Services  ,Service Contract Payments,Services to People,PH-Lifestyles,"103,313.70",561704,12737
18/10/2022,ZZH714440,1,1255,Millercare Ltd,270000,Information Communication Technology  ,Information and Communications Technology,Services to People,SADLs Service,"6,607.70",402001,12530
18/10/2022,ZZH714459,1,12180,Acorn Care and Education,261500,Human Resources Training & Conferences ,Fees and Charges,Services to People,SEN Independent Sch,"58,125.00",401024,10372
18/10/2022,ZZH714460,1,14804,CAN Digital Solutions Ltd,190000,Facilities & Management Services  ,Office Expenses,Services to People,PH - COMF Grant,"10,000.00",400700,13097
19/10/2022,ZZH714474,1,7820,GMCA - GMUTC,390000,"Works - Construction, Repair & Maintenance  ",Capital Expenditure - Works,#N/A,#N/A,"40,796.00",200304,C.01454.203
19/10/2022,ZZH714475,1,6967,Wilde Consultants Ltd,150000,Consultancy   ,Professional Fees,Services to Place,MS Design Frnwk Staf,"40,800.00",401020,13107
19/10/2022,ZZH714476,1,6967,Wilde Consultants Ltd,150000,Consultancy   ,Professional Fees,Services to Place,MS Design Frnwk Staf,"28,943.20",401020,13107
19/10/2022,ZZH714477,1,6967,Wilde Consultants Ltd,150000,Consultancy   ,Professional Fees,Services to Place,MS Design Frnwk Staf,"79,120.00",401020,13107
19/10/2022,ZZH714478,1,6967,Wilde Consultants Ltd,150000,Consultancy   ,Professional Fees,Services to Place,MS Design Frnwk Staf,"17,204.00",401020,13107
19/10/2022,ZZH714479,1,4272,Civica UK Ltd,270000,Information Communication Technology  ,Information and Communications Technology,Corporate and Support Services,"Registrars B, D & M","7,940.00",402001,11295
19/10/2022,ZZH714482,1,15082,Stockport Active CIC,320000,Social Community Care Supplies & Services  ,Third party payments - Private/Voluntary Sector,Services to People,CADA grant,"5,000.00",402403,13032
19/10/2022,ZZH714513,1,7820,GMCA - GMUTC,150000,Consultancy   ,Professional Fees,#N/A,#N/A,"10,980.00",401007,C.01536.202
19/10/2022,ZZH714524,1,3529,Totally Local Company Ltd,381600,Vehicle Management Leasing ,Leasing /Transport Hire,Services to Place,Contrct P-St Cleansg,"11,099.00",300401,10881
19/10/2022,ZZH714529,1,6967,Wilde Consultants Ltd,150000,Consultancy   ,Professional Fees,Services to Place,Network Assets Staff,"25,530.00",401020,11959
19/10/2022,ZZH714532,1,6116,Atkins Limited,150000,Consultancy   ,Professional Fees,#N/A,#N/A,"5,005.80",401007,C.01508.201
20/10/2022,ZZH714566,1,3529,Totally Local Company Ltd,181800,Environmental Services Technical Equipment ,Furniture and Equipment,Services to Place,Highway Structs R+R,"6,501.00",400110,11975
20/10/2022,ZZH714571,1,5214,WSP GROUP PLC,150000,Consultancy   ,Professional Fees,#N/A,#N/A,"15,118.75",401007,C.01471.201
20/10/2022,ZZH714582,1,13703,St Ralph Sherwin Catholic Mult,170000,Education  ,Third party payments - Public Sector,Services to People,OLA pupils,"6,632.50",500304,10371
21/10/2022,ZZH714622,1,3529,Totally Local Company Ltd,390000,Supplies and services,Supplies and services,Services to Place,Emergency Tree Works,"35,750.00",401600,11168
24/10/2022,ZZH714651,1,15379,Compass Career Opportunities L,261300,Human Resources Recruitment & Assessment ,Advertising,Services to People,SF Senior Management,"5,942.40",102040,11486
24/10/2022,ZZH714653,1,7025,CBRE Limited,150000,Consultancy   ,Professional Fees,Services to Place,Merseyway Shop Ctre,"20,000.00",401020,12866
24/10/2022,ZZH714677,1,11466,High Peak School Ltd,261500,Human Resources Training & Conferences ,Fees and Charges,Services to People,SEN Independent Sch,"32,662.11",401024,10372
24/10/2022,ZZH714679,1,6116,Atkins Limited,150000,Consultancy   ,Professional Fees,Services to Place,Feasibility,"58,760.00",401020,13062
24/10/2022,ZZH714700,1,7025,CBRE Limited,150000,Consultancy   ,Professional Fees,Services to Place,MDC Mayoral DC,"75,000.00",401007,13033
24/10/2022,ZZH714704,1,3529,Totally Local Company Ltd,230000,Highway Equipment & Materials�   ,Highways Maintenance,Services to Place,Gritting,"33,749.00",202056,12033
25/10/2022,ZZH714725,1,1104,Age UK Stockport,340000,Stationery    ,Office Expenses,Services to People,PH - COMF Grant,"10,000.00",400707,13097
25/10/2022,ZZH714727,1,12269,PENARTH GROUP,261500,Human Resources Training & Conferences ,Fees and Charges,Services to People,SEN Independent Sch,"18,841.77",401024,10372
25/10/2022,ZZH714729,1,10841,Whistl UK Limited,300000,Mail Services�  ,Office Expenses,Corporate and Support Services,Mailroom Service,"37,500.00",400711,11152
25/10/2022,ZZH714731,1,3290,Royal Mail,300000,Mail Services�  ,Office Expenses,Corporate and Support Services,Mailroom Service,"15,000.00",400711,11152
25/10/2022,ZZH714733,1,12684,Looking Local,270000,Information Communication Technology  ,Information and Communications Technology,Corporate and Support Services,I.T Business Relat,"22,000.00",402001,13044
25/10/2022,ZZH714736,1,5131,FUTURE DESIGN CONSULTANTS,150000,Consultancy   ,Professional Fees,Services to Place,Employment Initiativ,"7,392.00",401007,12775
25/10/2022,ZZH714747,1,3401,N Pickford Installations,390000,"Works - Construction, Repair & Maintenance  ",Repairs and Maintenance,Services to Place,Merseyway Redrock CP,"11,050.00",200123,10045
25/10/2022,ZZH714750,1,3239,ARC,290000,Arts & Leisure Services  ,Publicity and Promotion,Services to Place,Arts Development,"10,000.00",401801,11384
25/10/2022,ZZH714752,1,1644,Tameside MBC,999999,Third party payments - Public Sector,Third party payments - Public Sector,Services to People,Adults Management,"60,000.00",500303,11873
25/10/2022,ZZH714753,1,14283,Watchtower Security Soluti,192200,Facilities & Management Services Security ,Security,Services to People,Adults Management,"7,254.88",201204,11873
25/10/2022,ZZH714755,1,6748,GEORGE COX & SONS LTD,390000,Supplies and services,Supplies and services,#N/A,#N/A,"7,733.34",401600,C.01523.203
25/10/2022,ZZH714756,1,3529,Totally Local Company Ltd,390000,"Works - Construction, Repair & Maintenance  ",Capital Expenditure - Works,#N/A,#N/A,"15,639.48",200304,C.01435.203
25/10/2022,ZZH714757,1,3529,Totally Local Company Ltd,390000,"Works - Construction, Repair & Maintenance  ",Capital Expenditure - Works,#N/A,#N/A,"67,855.26",200304,C.01435.203
25/10/2022,ZZH714762,1,5131,FUTURE DESIGN CONSULTANTS,190000,Facilities & Management Services  ,Publicity and Promotion,Corporate and Support Services,Chief Execs Office,"7,940.00",401804,11112
25/10/2022,ZZH714771,1,4765,Johnnie Johnson Housing Ltd,320000,Social Community Care Supplies & Services  ,Care Payments,Services to People,Extra Care Hsg Block,"7,172.04",530328,12219
26/10/2022,ZZH714802,1,14414,MEADOWS CARE LTD,261500,Human Resources Training & Conferences ,Fees and Charges,Services to People,SEN Independent Sch,"29,750.00",401024,10372
26/10/2022,ZZH714803,1,12180,Acorn Care and Education,261500,Human Resources Training & Conferences ,Fees and Charges,Services to People,SEN Independent Sch,"38,750.00",401024,10372
26/10/2022,ZZH714821,1,12479,Jisc Services Ltd,270000,Information Communication Technology  ,Information and Communications Technology,Corporate and Support Services,IT Infrastructure,"11,772.00",402001,11324
26/10/2022,ZZH714821,2,12479,Jisc Services Ltd,270000,Information Communication Technology  ,Information and Communications Technology,Corporate and Support Services,IT Infrastructure,"5,940.00",402001,11324
26/10/2022,ZZH714821,3,12479,Jisc Services Ltd,270000,Information Communication Technology  ,Information and Communications Technology,Corporate and Support Services,IT Infrastructure,837.81,402001,11324
26/10/2022,ZZH714821,4,12479,Jisc Services Ltd,270000,Information Communication Technology  ,Information and Communications Technology,Corporate and Support Services,IT Infrastructure,"20,742.36",402001,11324
26/10/2022,ZZH714822,1,13223,A Pacini Ltd,261400,Human Resources Temporary & Agency Staff ,Agency Staff,Services to Place,Property Client Acct,"5,401.50",100290,12328
26/10/2022,ZZH714823,1,15394,Family Care Group,170000,Education  ,Third party payments - Public Sector,Services to People,OLA pupils,"32,000.00",500304,10371
27/10/2022,ZZH714830,1,10298,SOLO PROTECT LTD,181800,Environmental Services Technical Equipment ,Furniture and Equipment,Corporate and Support Services,Democratic Services,"1,440.00",400110,11100
27/10/2022,ZZH714830,2,10298,SOLO PROTECT LTD,181800,Environmental Services Technical Equipment ,Furniture and Equipment,Services to People,INT C Staffing,240.00,400110,12896
27/10/2022,ZZH714830,3,10298,SOLO PROTECT LTD,181800,Environmental Services Technical Equipment ,Furniture and Equipment,Services to People,INT B Staffing,0.00,400110,12897
27/10/2022,ZZH714830,3,10298,SOLO PROTECT LTD,181800,Environmental Services Technical Equipment ,Furniture and Equipment,Services to People,INT B Staffing,240.00,400110,12897
27/10/2022,ZZH714830,4,10298,SOLO PROTECT LTD,181800,Environmental Services Technical Equipment ,Furniture and Equipment,Services to People,Enhanced F/Door Team,720.00,400110,11098
27/10/2022,ZZH714830,5,10298,SOLO PROTECT LTD,181800,Environmental Services Technical Equipment ,Furniture and Equipment,Services to People,INT H Staffing,240.00,400110,12898
27/10/2022,ZZH714830,6,10298,SOLO PROTECT LTD,181800,Environmental Services Technical Equipment ,Furniture and Equipment,Services to People,INT TV Staffing,480.00,400110,12899
27/10/2022,ZZH714830,7,10298,SOLO PROTECT LTD,181800,Environmental Services Technical Equipment ,Furniture and Equipment,Services to People,INT M Staffing,240.00,400110,12892
27/10/2022,ZZH714830,8,10298,SOLO PROTECT LTD,181800,Environmental Services Technical Equipment ,Furniture and Equipment,Services to People,INT W Staffing,240.00,400110,12893
27/10/2022,ZZH714830,9,10298,SOLO PROTECT LTD,181800,Environmental Services Technical Equipment ,Furniture and Equipment,Services to People,PTG Troubled Familie,"1,200.00",400110,10148
27/10/2022,ZZH714830,10,10298,SOLO PROTECT LTD,181800,Environmental Services Technical Equipment ,Furniture and Equipment,Services to People,INT SH Staffing,480.00,400110,12894
27/10/2022,ZZH714830,11,10298,SOLO PROTECT LTD,181800,Environmental Services Technical Equipment ,Furniture and Equipment,Services to People,INT VI Staffing,240.00,400110,12895
27/10/2022,ZZH714830,12,10298,SOLO PROTECT LTD,181800,Environmental Services Technical Equipment ,Furniture and Equipment,Corporate and Support Services,Bentax,0.00,400110,11139
27/10/2022,ZZH714830,12,10298,SOLO PROTECT LTD,181800,Environmental Services Technical Equipment ,Furniture and Equipment,Corporate and Support Services,Bentax,240.00,400110,11139
27/10/2022,ZZH714830,13,10298,SOLO PROTECT LTD,181800,Environmental Services Technical Equipment ,Furniture and Equipment,Corporate and Support Services,Benefit & Debt Advce,480.00,400110,11322
27/10/2022,ZZH714830,14,10298,SOLO PROTECT LTD,181800,Environmental Services Technical Equipment ,Furniture and Equipment,Services to Place,Car Parks Admin,"1,680.00",400110,10005
27/10/2022,ZZH714830,15,10298,SOLO PROTECT LTD,181800,Environmental Services Technical Equipment ,Furniture and Equipment,Services to People,Out of Hours Team,560.00,400110,12791
27/10/2022,ZZH714852,1,1722,The Together Trust Centre,320000,Social Community Care Supplies & Services  ,Third party payments - Private/Voluntary Sector,Services to People,Top-up Fund Post 16,"237,614.23",402403,12724
27/10/2022,ZZH714855,1,1382,Pure Innovations Ltd,320000,Social Community Care Supplies & Services  ,Third party payments - Private/Voluntary Sector,Services to People,Top-up Fund Post 16,"48,024.00",402403,12724
27/10/2022,ZZH714856,1,15380,Digital Advantage,320000,Social Community Care Supplies & Services  ,Third party payments - Private/Voluntary Sector,Services to People,Top-up Fund Post 16,"12,000.00",402403,12724
27/10/2022,ZZH714857,1,2213,Myerscough College,320000,Social Community Care Supplies & Services  ,Third party payments - Private/Voluntary Sector,Services to People,Top-up Fund Post 16,"5,780.01",402403,12724
27/10/2022,ZZH714862,1,15395,Mosscare St Vincent's Housing,192200,Facilities & Management Services Security ,Security,#N/A,#N/A,"165,593.00",201204,C.11034
27/10/2022,ZZH714872,1,15289,Miss Hannah Haines,150000,Consultancy   ,Professional Fees,Corporate and Support Services,Legal Fees Budget,"13,650.00",401020,12271
31/10/2022,ZZH714902,1,9220,NGA NATIONAL GOVERNORS ASSOCIA,200000,Financial Services  ,Fees and Charges,Services to People,SI - School Govern,"13,677.00",402401,10755
31/10/2022,ZZH714903,1,11280,The Key Support Services Limit,270000,Information Communication Technology  ,Information and Communications Technology,Services to People,SI - School Govern,"10,646.71",402001,10755
31/10/2022,ZZH714909,1,15343,STOCKPORT RACE EQUALITY PARTNE,320000,Social Community Care Supplies & Services  ,Third party payments - Private/Voluntary Sector,Corporate and Support Services,Com. Invest Fund,"2,500.00",402403,12979
31/10/2022,ZZH714909,2,15343,STOCKPORT RACE EQUALITY PARTNE,320000,Social Community Care Supplies & Services  ,Third party payments - Private/Voluntary Sector,Corporate and Support Services,Com. Invest Fund,"2,500.00",402403,12979
31/10/2022,ZZH714909,3,15343,STOCKPORT RACE EQUALITY PARTNE,320000,Social Community Care Supplies & Services  ,Third party payments - Private/Voluntary Sector,Corporate and Support Services,Com. Invest Fund,"2,500.00",402403,12979
31/10/2022,ZZH714909,4,15343,STOCKPORT RACE EQUALITY PARTNE,320000,Social Community Care Supplies & Services  ,Third party payments - Private/Voluntary Sector,Corporate and Support Services,Com. Invest Fund,"2,500.00",402403,12979
31/10/2022,ZZH714909,5,15343,STOCKPORT RACE EQUALITY PARTNE,320000,Social Community Care Supplies & Services  ,Third party payments - Private/Voluntary Sector,Corporate and Support Services,Com. Invest Fund,900.00,402403,12979
31/10/2022,ZZH714909,6,15343,STOCKPORT RACE EQUALITY PARTNE,320000,Social Community Care Supplies & Services  ,Third party payments - Private/Voluntary Sector,Corporate and Support Services,Com. Invest Fund,"1,000.00",402403,12979
31/10/2022,ZZH714911,1,15343,STOCKPORT RACE EQUALITY PARTNE,320000,Social Community Care Supplies & Services  ,Third party payments - Private/Voluntary Sector,Corporate and Support Services,Com. Invest Fund,"1,250.00",402403,12979
31/10/2022,ZZH714911,2,15343,STOCKPORT RACE EQUALITY PARTNE,320000,Social Community Care Supplies & Services  ,Third party payments - Private/Voluntary Sector,Corporate and Support Services,Com. Invest Fund,"1,250.00",402403,12979
31/10/2022,ZZH714911,3,15343,STOCKPORT RACE EQUALITY PARTNE,320000,Social Community Care Supplies & Services  ,Third party payments - Private/Voluntary Sector,Corporate and Support Services,Com. Invest Fund,"1,250.00",402403,12979
31/10/2022,ZZH714911,4,15343,STOCKPORT RACE EQUALITY PARTNE,320000,Social Community Care Supplies & Services  ,Third party payments - Private/Voluntary Sector,Corporate and Support Services,Com. Invest Fund,"1,250.00",402403,12979
31/10/2022,ZZH714911,5,15343,STOCKPORT RACE EQUALITY PARTNE,320000,Social Community Care Supplies & Services  ,Third party payments - Private/Voluntary Sector,Corporate and Support Services,Com. Invest Fund,900.00,402403,12979
31/10/2022,ZZH714911,6,15343,STOCKPORT RACE EQUALITY PARTNE,320000,Social Community Care Supplies & Services  ,Third party payments - Private/Voluntary Sector,Corporate and Support Services,Com. Invest Fund,"1,000.00",402403,12979
31/10/2022,ZZH714912,1,15343,STOCKPORT RACE EQUALITY PARTNE,320000,Social Community Care Supplies & Services  ,Third party payments - Private/Voluntary Sector,Corporate and Support Services,Com. Invest Fund,"1,750.00",402403,12979
31/10/2022,ZZH714912,2,15343,STOCKPORT RACE EQUALITY PARTNE,320000,Social Community Care Supplies & Services  ,Third party payments - Private/Voluntary Sector,Corporate and Support Services,Com. Invest Fund,"1,750.00",402403,12979
31/10/2022,ZZH714912,3,15343,STOCKPORT RACE EQUALITY PARTNE,320000,Social Community Care Supplies & Services  ,Third party payments - Private/Voluntary Sector,Corporate and Support Services,Com. Invest Fund,"1,750.00",402403,12979
31/10/2022,ZZH714912,4,15343,STOCKPORT RACE EQUALITY PARTNE,320000,Social Community Care Supplies & Services  ,Third party payments - Private/Voluntary Sector,Corporate and Support Services,Com. Invest Fund,"1,750.00",402403,12979
31/10/2022,ZZH714912,5,15343,STOCKPORT RACE EQUALITY PARTNE,320000,Social Community Care Supplies & Services  ,Third party payments - Private/Voluntary Sector,Corporate and Support Services,Com. Invest Fund,900.00,402403,12979
31/10/2022,ZZH714912,6,15343,STOCKPORT RACE EQUALITY PARTNE,320000,Social Community Care Supplies & Services  ,Third party payments - Private/Voluntary Sector,Corporate and Support Services,Com. Invest Fund,"1,000.00",402403,12979
31/10/2022,ZZH714940,1,757,Transport for Greater Manchest,390000,Supplies and services,Supplies and services,#N/A,#N/A,"50,880.00",401600,C.01467.201
31/10/2022,ZZH714964,1,3529,Totally Local Company Ltd,390000,Supplies and services,Supplies and services,#N/A,#N/A,"5,790.25",401600,C.01572.201
01/11/2022,ZZH714999,1,35,CBC Computer Systems Ltd,270000,Information Communication Technology  ,Information and Communications Technology,Corporate and Support Services,Business Intelligenc,"4,860.00",402001,11872
01/11/2022,ZZH714999,2,35,CBC Computer Systems Ltd,270000,Information Communication Technology  ,Information and Communications Technology,Corporate and Support Services,Business Intelligenc,224.00,402001,11872
01/11/2022,ZZH714999,3,35,CBC Computer Systems Ltd,270000,Information Communication Technology  ,Information and Communications Technology,Corporate and Support Services,Business Intelligenc,236.00,402001,11872
01/11/2022,ZZH715002,1,8730,Counting Solutions Ltd,181800,Environmental Services Technical Equipment ,Furniture and Equipment,Services to Place,Market General,"6,000.00",400110,10906
02/11/2022,ZZH715078,1,5131,FUTURE DESIGN CONSULTANTS,150000,Consultancy   ,Professional Fees,Services to Place,Employment Initiativ,"8,760.00",401007,12775
02/11/2022,ZZH715092,1,3529,Totally Local Company Ltd,240000,Horticultural  ,Grounds Maintenance,#N/A,#N/A,"6,192.00",202032,C.10775
02/11/2022,ZZH715094,1,13069,W H Good Ltd,390000,"Works - Construction, Repair & Maintenance  ",Repairs and Maintenance,Services to Place,Winters,"24,998.00",200123,13119
03/11/2022,ZZH715148,1,6748,GEORGE COX & SONS LTD,390000,Supplies and services,Supplies and services,Services to People,Condition Surveys,"6,684.84",401600,10734
04/11/2022,ZZH715179,1,3529,Totally Local Company Ltd,390000,Supplies and services,Supplies and services,#N/A,#N/A,"8,645.88",401600,C.01454.203
07/11/2022,ZZH715250,1,1339,Stockport NHS Foundation Trust,310000,Healthcare  ,Third party payments - Public Sector,Services to People,SEN Specific support,"18,100.00",500402,10300
07/11/2022,ZZH715254,1,15223,Review Consulting Ltd,150000,Consultancy   ,Professional Fees,Services to People,SA Board,"8,830.00",401020,12825
07/11/2022,ZZH715267,1,8423,SMS Coaching Limited,261500,Human Resources Training & Conferences ,Fees and Charges,Services to People,SEN Independent Sch,"27,066.67",401024,10372
07/11/2022,ZZH715271,1,12263,Ashgate Specialist Support Pri,170000,Education  ,Third party payments - Public Sector,Services to People,OLA pupils,"8,236.00",500304,10371
07/11/2022,ZZH715289,1,6697,Mott MacDonald /Cambridge Edu,150000,Consultancy   ,Professional Fees,Services to Place,Land Dev-Werneth Os,"7,098.00",401007,11280
07/11/2022,ZZH715297,1,6116,Atkins Limited,150000,Consultancy   ,Professional Fees,#N/A,#N/A,"5,005.80",401007,C.01508.201
08/11/2022,ZZH715312,1,1339,Stockport NHS Foundation Trust,150000,Consultancy   ,Professional Fees,Services to People,SEN Specific support,"36,000.00",401020,10300
08/11/2022,ZZH715312,2,1339,Stockport NHS Foundation Trust,999999,Fees and Charges,Fees and Charges,Services to People,Early Implementer EY,"20,000.00",402404,12903
08/11/2022,ZZH715312,3,1339,Stockport NHS Foundation Trust,999999,Fees and Charges,Fees and Charges,Services to People,SEN Specific support,"20,000.00",402404,10300
08/11/2022,ZZH715312,4,1339,Stockport NHS Foundation Trust,999999,Fees and Charges,Fees and Charges,Services to People,EY Contingency,"20,000.00",402404,12231
08/11/2022,ZZH715348,1,13223,A Pacini Ltd,261400,Human Resources Temporary & Agency Staff ,Agency Staff,Services to Place,Property Client Acct,"5,395.50",100290,12328
08/11/2022,ZZH715375,1,1339,Stockport NHS Foundation Trust,310000,Healthcare  ,Third party payments - Public Sector,Services to People,Scale & Spread - NWD,"74,699.00",500402,13029
09/11/2022,ZZH715384,1,12269,PENARTH GROUP,261500,Human Resources Training & Conferences ,Fees and Charges,Services to People,SEN Independent Sch,"15,516.67",401024,10372
09/11/2022,ZZH715407,1,3529,Totally Local Company Ltd,390000,Supplies and services,Supplies and services,#N/A,#N/A,"50,013.00",401600,C.01445.203
09/11/2022,ZZH715408,1,5214,WSP GROUP PLC,390000,Supplies and services,Supplies and services,#N/A,#N/A,"29,322.50",401600,C.01468.201
09/11/2022,ZZH715409,1,9894,TLT LLP,390000,Supplies and services,Supplies and services,#N/A,#N/A,"5,000.00",401600,C.00845.203
09/11/2022,ZZH715410,1,9894,TLT LLP,390000,Supplies and services,Supplies and services,#N/A,#N/A,"50,000.00",401600,C.00845.203
09/11/2022,ZZH715411,1,9894,TLT LLP,390000,Supplies and services,Supplies and services,#N/A,#N/A,"5,000.00",401600,C.00845.203
09/11/2022,ZZH715412,1,13495,Pell Frischmann Consultants Lt,150000,Consultancy   ,Professional Fees,#N/A,#N/A,"50,933.70",401007,C.01276.201
09/11/2022,ZZH715442,1,6967,Wilde Consultants Ltd,390000,Supplies and services,Supplies and services,Services to Place,Design Frmwk Staff,"51,592.32",401600,11965
11/11/2022,ZZH715514,1,10839,Firesec North West Limited,390000,"Works - Construction, Repair & Maintenance  ",Repairs and Maintenance,#N/A,#N/A,"7,250.00",200123,C.10423.184
11/11/2022,ZZH715527,1,15424,Blacka Acoustics Ltd,290000,Arts & Leisure Services  ,Publicity and Promotion,Corporate and Support Services,Mayoralty,"5,500.00",401801,11110
11/11/2022,ZZH715546,1,10176,Stockport County 2010 Ltd,261500,Human Resources Training & Conferences ,Expenses and Allowances,Services to People,SF Senior Management,"6,175.00",402201,11486
14/11/2022,ZZH715555,1,3529,Totally Local Company Ltd,150000,Consultancy   ,Professional Fees,#N/A,#N/A,"22,041.00",401007,C.01506.201
14/11/2022,ZZH715556,1,3529,Totally Local Company Ltd,150000,Consultancy   ,Professional Fees,#N/A,#N/A,"19,446.00",401007,C.01505.201
14/11/2022,ZZH715557,1,3529,Totally Local Company Ltd,150000,Consultancy   ,Professional Fees,#N/A,#N/A,"10,411.00",401007,C.01504.201
14/11/2022,ZZH715559,1,8233,MGB Plastics Ltd,182020,Environmental Services Waste Management,Waste Management Equipment,Services to Place,Wheelie Bins,"15,456.00",400401,10864
14/11/2022,ZZH715568,1,3529,Totally Local Company Ltd,381600,Vehicle Management Hire/Leasing ,Leasing /Transport Hire,Services to People,SC - Dial Park,"5,297.00",300300,11447
14/11/2022,ZZH715568,2,3529,Totally Local Company Ltd,381600,Vehicle Management Hire/Leasing ,Leasing /Transport Hire,Services to People,SC - Dial Park,106.00,300300,11447
14/11/2022,ZZH715569,1,3529,Totally Local Company Ltd,381600,Vehicle Management Hire/Leasing ,Leasing /Transport Hire,Services to People,SC - Broadfield,"5,036.00",300300,11443
14/11/2022,ZZH715569,2,3529,Totally Local Company Ltd,260000,Human Resources  ,Staff Training,Services to People,SC - Broadfield,106.00,102020,11443
14/11/2022,ZZH715570,1,3529,Totally Local Company Ltd,381600,Vehicle Management Hire/Leasing ,Leasing /Transport Hire,Services to People,Broadfields 16+ Unit,"7,325.00",300300,12977
14/11/2022,ZZH715570,2,3529,Totally Local Company Ltd,260000,Human Resources  ,Staff Training,Services to People,Broadfields 16+ Unit,423.00,102020,12977
14/11/2022,ZZH715574,1,82,Marwood Electrical Company Ltd,390000,"Works - Construction, Repair & Maintenance  ",Capital Expenditure - Works,#N/A,#N/A,"8,802.30",200304,C.01200.203
14/11/2022,ZZH715574,2,82,Marwood Electrical Company Ltd,390000,"Works - Construction, Repair & Maintenance  ",Capital Expenditure - Works,#N/A,#N/A,"1,976.40",200304,C.01200.203
14/11/2022,ZZH715574,3,82,Marwood Electrical Company Ltd,390000,"Works - Construction, Repair & Maintenance  ",Capital Expenditure - Works,#N/A,#N/A,658.80,200304,C.01200.203
14/11/2022,ZZH715577,1,9101,PUDSEY DIAMOND ENG LTD,390000,"Works - Construction, Repair & Maintenance  ",Capital Expenditure - Works,#N/A,#N/A,"5,268.56",200304,C.01200.203
14/11/2022,ZZH715588,1,8423,SMS Coaching Limited,261500,Human Resources Training & Conferences ,Fees and Charges,Services to People,SEN Independent Sch,"23,683.33",401024,10372
14/11/2022,ZZH715594,1,15232,Howard Stott Demolition Ltd,390000,Supplies and services,Supplies and services,#N/A,#N/A,"718,000.00",401600,C.10960
14/11/2022,ZZH715608,1,14414,MEADOWS CARE LTD,261500,Human Resources Training & Conferences ,Fees and Charges,Services to People,SEN Independent Sch,"23,283.00",401024,10372
15/11/2022,ZZH715636,1,1342,UK Container Maintenance Ltd,182020,Environmental Services Waste Management,Waste Management Equipment,Services to Place,Bulk Container,187.00,400401,10883
15/11/2022,ZZH715636,2,1342,UK Container Maintenance Ltd,182020,Environmental Services Waste Management,Waste Management Equipment,Services to Place,Bulk Container,561.00,400401,10883
15/11/2022,ZZH715636,3,1342,UK Container Maintenance Ltd,182020,Environmental Services Waste Management,Waste Management Equipment,Services to Place,Bulk Container,609.00,400401,10883
15/11/2022,ZZH715636,4,1342,UK Container Maintenance Ltd,182020,Environmental Services Waste Management,Waste Management Equipment,Services to Place,Bulk Container,"1,218.00",400401,10883
15/11/2022,ZZH715636,5,1342,UK Container Maintenance Ltd,182020,Environmental Services Waste Management,Waste Management Equipment,Services to Place,Bulk Container,"2,639.00",400401,10883
15/11/2022,ZZH715636,6,1342,UK Container Maintenance Ltd,182020,Environmental Services Waste Management,Waste Management Equipment,Services to Place,Bulk Container,812.00,400401,10883
15/11/2022,ZZH715636,7,1342,UK Container Maintenance Ltd,182020,Environmental Services Waste Management,Waste Management Equipment,Services to Place,Bulk Container,378.00,400401,10883
16/11/2022,ZZH715664,1,10897,Three Sixty SHG Ltd,240000,Horticultural  ,Grounds Maintenance,Services to Place,SPB - Investment Est,"30,941.33",202029,10062
16/11/2022,ZZH715695,1,10339,The Proud Trust,261500,Human Resources Training & Conferences ,Fees and Charges,Services to People,PH - COMF Grant,"45,000.00",401024,13097
16/11/2022,ZZH715699,1,13860,Howard Lynn Property Ltd,261400,Human Resources Temporary & Agency Staff ,Agency Staff,Services to Place,Property Client Acct,"6,628.21",100290,12328
17/11/2022,ZZH715750,1,780,J A Jones + Sons,181800,Environmental Services Technical Equipment ,Furniture and Equipment,Services to Place,Nature-Arboriculture,624.00,400110,11281
17/11/2022,ZZH715750,2,780,J A Jones + Sons,181800,Environmental Services Technical Equipment ,Furniture and Equipment,Services to Place,Nature-Arboriculture,"1,248.00",400110,11281
17/11/2022,ZZH715750,3,780,J A Jones + Sons,181800,Environmental Services Technical Equipment ,Furniture and Equipment,Services to Place,Nature-Arboriculture,378.00,400110,11281
17/11/2022,ZZH715750,4,780,J A Jones + Sons,181800,Environmental Services Technical Equipment ,Furniture and Equipment,Services to Place,Nature-Arboriculture,816.00,400110,11281
17/11/2022,ZZH715750,5,780,J A Jones + Sons,181800,Environmental Services Technical Equipment ,Furniture and Equipment,Services to Place,Nature-Arboriculture,450.00,400110,11281
17/11/2022,ZZH715750,6,780,J A Jones + Sons,181800,Environmental Services Technical Equipment ,Furniture and Equipment,Services to Place,Nature-Arboriculture,450.00,400110,11281
17/11/2022,ZZH715750,7,780,J A Jones + Sons,181800,Environmental Services Technical Equipment ,Furniture and Equipment,Services to Place,Nature-Arboriculture,392.00,400110,11281
17/11/2022,ZZH715750,8,780,J A Jones + Sons,181800,Environmental Services Technical Equipment ,Furniture and Equipment,Services to Place,Nature-Arboriculture,"1,612.00",400110,11281
17/11/2022,ZZH715750,9,780,J A Jones + Sons,181800,Environmental Services Technical Equipment ,Furniture and Equipment,Services to Place,Nature-Arboriculture,"1,612.00",400110,11281
17/11/2022,ZZH715750,10,780,J A Jones + Sons,181800,Environmental Services Technical Equipment ,Furniture and Equipment,Services to Place,Nature-Arboriculture,676.00,400110,11281
17/11/2022,ZZH715750,11,780,J A Jones + Sons,181800,Environmental Services Technical Equipment ,Furniture and Equipment,Services to Place,Nature-Arboriculture,144.00,400110,11281
17/11/2022,ZZH715750,12,780,J A Jones + Sons,181800,Environmental Services Technical Equipment ,Furniture and Equipment,Services to Place,Nature-Arboriculture,48.00,400110,11281
17/11/2022,ZZH715750,13,780,J A Jones + Sons,181800,Environmental Services Technical Equipment ,Furniture and Equipment,Services to Place,Nature-Arboriculture,178.00,400110,11281
17/11/2022,ZZH715750,14,780,J A Jones + Sons,181800,Environmental Services Technical Equipment ,Furniture and Equipment,Services to Place,Nature-Arboriculture,65.00,400110,11281
17/11/2022,ZZH715766,1,13890,Elaine Cross Psychology Ltd,261500,Human Resources Training & Conferences ,Fees and Charges,Services to People,FP - Fostering Staff,"5,600.00",401024,11489
17/11/2022,ZZH715773,1,12180,Acorn Care and Education,261500,Human Resources Training & Conferences ,Fees and Charges,Services to People,SEN Independent Sch,"46,305.00",401024,10372
17/11/2022,ZZH715775,1,11466,High Peak School Ltd,261500,Human Resources Training & Conferences ,Fees and Charges,Services to People,SEN Independent Sch,"24,361.25",401024,10372
17/11/2022,ZZH715776,1,11466,High Peak School Ltd,261500,Human Resources Training & Conferences ,Fees and Charges,Services to People,SEN Independent Sch,"24,361.25",401024,10372
17/11/2022,ZZH715777,1,11466,High Peak School Ltd,261500,Human Resources Training & Conferences ,Fees and Charges,Services to People,SEN Independent Sch,"17,100.00",401024,10372
17/11/2022,ZZH715779,1,8646,MPH INSPECTION SERVICES,350000,Street & Traffic Management  ,Fixtures and Fittings,Services to Place,Struc Test of Column,"15,000.50",201202,11995
17/11/2022,ZZH715779,2,8646,MPH INSPECTION SERVICES,350000,Street & Traffic Management  ,Fixtures and Fittings,Services to Place,Struc Test of Column,724.50,201202,11995
17/11/2022,ZZH715779,3,8646,MPH INSPECTION SERVICES,350000,Street & Traffic Management  ,Fixtures and Fittings,Services to Place,Struc Test of Column,"3,049.50",201202,11995
17/11/2022,ZZH715780,1,5214,WSP GROUP PLC,150000,Consultancy   ,Professional Fees,#N/A,#N/A,"44,613.00",401007,C.01569.201
17/11/2022,ZZH715781,1,2025,BT Plc (Openreach),230000,Highway Equipment & Materials�   ,Highways Maintenance,#N/A,#N/A,"144,815.09",202055,C.01568.201
17/11/2022,ZZH715782,1,6748,GEORGE COX & SONS LTD,390000,Supplies and services,Supplies and services,#N/A,#N/A,"79,198.99",401600,C.00848.201
17/11/2022,ZZH715783,1,13495,Pell Frischmann Consultants Lt,390000,Supplies and services,Supplies and services,#N/A,#N/A,"51,630.00",401600,C.01467.201
17/11/2022,ZZH715785,1,1694,Network Rail Infras'ture Ltd,390000,Supplies and services,Supplies and services,#N/A,#N/A,"51,686.00",401600,C.01467.201
17/11/2022,ZZH715790,1,7025,CBRE Limited,150000,Consultancy   ,Professional Fees,Services to Place,MDC Mayoral DC,"8,184.00",401007,13033
17/11/2022,ZZH715793,1,15412,Alvanley Family Practice Healt,320000,Social Community Care Supplies & Services  ,Third party payments - Private/Voluntary Sector,Services to People,CADA grant,"5,000.00",402403,13032
18/11/2022,ZZH715822,1,13430,Team Teach Ltd,261500,Human Resources Training & Conferences ,Fees and Charges,Services to People,LSS Core,"13,438.00",401024,10309
18/11/2022,ZZH715824,1,9715,NHS GREATER MANCHESTER INTEGRA,270000,Information Communication Technology  ,Information and Communications Technology,Corporate and Support Services,IT Infrastructure,"6,155.00",402002,11324
18/11/2022,ZZH715856,1,3529,Totally Local Company Ltd,390000,"Works - Construction, Repair & Maintenance  ",Repairs and Maintenance,Services to Place,Car Park Maintenance,"5,102.20",200123,12510
18/11/2022,ZZH715860,1,7820,GMCA - GMUTC,202100,Financial Services Subscriptions ,Third party payments - Public Sector,Corporate and Support Services,AGMA & LA Subs,"877,000.00",500305,10979
21/11/2022,ZZH715890,1,3529,Totally Local Company Ltd,240000,Horticultural  ,Grounds Maintenance,Services to Place,Manor Ward,"5,817.00",202035,12019
21/11/2022,ZZH715892,1,15429,ClubTurf Cricket Limited,390000,"Works - Construction, Repair & Maintenance  ",Capital Expenditure - Works,Services to Place,Sports Trust,"41,600.00",200311,11294
22/11/2022,ZZH715910,1,15261,Bridgelea Primary School,170000,Education  ,Third party payments - Public Sector,Services to People,OLA pupils,"25,950.00",500304,10371
22/11/2022,ZZH715912,1,12367,Beech Hall School,261500,Human Resources Training & Conferences ,Fees and Charges,Services to People,SEN Independent Sch,"9,345.92",401024,10372
22/11/2022,ZZH715925,1,3529,Totally Local Company Ltd,150000,Consultancy   ,Professional Fees,#N/A,#N/A,"7,800.00",401007,C.01503.201
22/11/2022,ZZH715926,1,6116,Atkins Limited,390000,Supplies and services,Supplies and services,Services to Place,Feasibility,"24,204.80",401600,13062
22/11/2022,ZZH715956,1,11162,Kenny Waste Management Ltd,210000,Furniture & Soft Furnishings  ,Furniture and Equipment,Services to Place,Berevement Services,"10,455.00",400115,11285
22/11/2022,ZZH715959,1,3529,Totally Local Company Ltd,390000,Supplies and services,Supplies and services,Services to Place,Nature-Arboriculture,"5,961.00",401600,11281
22/11/2022,ZZH715965,1,12367,Beech Hall School,261500,Human Resources Training & Conferences ,Fees and Charges,Services to People,SEN Specific support,"7,706.40",401024,10300
22/11/2022,ZZH715967,1,14563,New Park Academy,170000,Education  ,Third party payments - Public Sector,Services to People,OLA pupils,"22,500.00",500304,10371
22/11/2022,ZZH715970,1,3738,Open Text UKLtd,270000,Information Communication Technology  ,Information and Communications Technology,Corporate and Support Services,IT Main,"49,188.63",402002,11073
22/11/2022,ZZH715970,2,3738,Open Text UKLtd,270000,Information Communication Technology  ,Information and Communications Technology,Corporate and Support Services,IT Main,"3,415.89",402002,11073
22/11/2022,ZZH715970,3,3738,Open Text UKLtd,270000,Information Communication Technology  ,Information and Communications Technology,Corporate and Support Services,IT Main,"9,468.84",402002,11073
23/11/2022,ZZH716009,1,15437,ASH Integrated Services Ltd,390000,Supplies and services,Supplies and services,#N/A,#N/A,"336,601.33",401600,C.10962
23/11/2022,ZZH716023,1,11660,Signis Limited,390000,Supplies and services,Supplies and services,Services to People,SG - Child Prot-Lscb,"9,030.00",401600,11424
24/11/2022,ZZH716062,1,4369,Pennine Care NHS Trust,310000,Healthcare  ,Third party payments - Public Sector,Services to People,Scale & Spread - NWD,"37,970.00",500402,13029
24/11/2022,ZZH716064,1,4369,Pennine Care NHS Trust,310000,Healthcare  ,Third party payments - Public Sector,Services to People,SC - CAHMS,"49,686.00",500402,11500
24/11/2022,ZZH716072,1,8234,LEX AUTOLEASE LTD,381600,Vehicle Management Hire/Leasing ,Leasing /Transport Hire,Corporate and Support Services,Democratic Services,"7,495.32",300302,11100
24/11/2022,ZZH716084,1,4369,Pennine Care NHS Trust,150000,Consultancy   ,Professional Fees,Services to People,MOS - Mosaic Mngmnt,"52,578.00",401020,11430
24/11/2022,ZZH716085,1,4369,Pennine Care NHS Trust,310000,Healthcare  ,Third party payments - Public Sector,Services to People,FDAC - Family D&A Ct,"44,442.00",500402,13058
24/11/2022,ZZH716089,1,216,Manchester City Council,999999,Third party payments - Public Sector,Third party payments - Public Sector,Services to People,PH-Programme Mngmt,"5,158.36",500303,12732
25/11/2022,ZZH716118,1,7231,BEACON COUNSELLING,999999,Social Community Care Supplies & Services  ,Service Contract Payments,Services to People,PH-Mental Wellbeing,"6,500.00",561704,12734
28/11/2022,ZZH716143,1,7979,Delib Limited,190000,Facilities & Management Services  ,Office Expenses,Corporate and Support Services,Strategy & Design,"19,995.00",400710,12642
28/11/2022,ZZH716144,1,9453,Gaist Solutions Ltd,390000,"Works - Construction, Repair & Maintenance  ",Capital Expenditure - Works,#N/A,#N/A,"26,545.00",200304,C.01202.201
28/11/2022,ZZH716150,1,4369,Pennine Care NHS Trust,310000,Healthcare  ,Third party payments - Public Sector,Services to People,SC - CAHMS,"149,675.00",500402,11500
28/11/2022,ZZH716151,1,1644,Tameside MBC,200000,Financial Services  ,Fees and Charges,Services to People,Heads of Service,"15,000.00",402401,11590
28/11/2022,ZZH716167,1,13662,Electricity North West (Constr,240000,Horticultural  ,Grounds Maintenance,#N/A,#N/A,"9,379.95",202032,C.10775
28/11/2022,ZZH716187,1,15102,Westwood Homecare Ltd (NW),320000,Social Community Care Supplies & Services  ,Care Payments,Services to People,DP - Respite,"7,915.53",530335,11513
29/11/2022,ZZH716197,1,6748,GEORGE COX & SONS LTD,230000,Highway Equipment & Materials�   ,Highways Maintenance,Services to People,Condition Surveys,"15,600.63",202052,10734
29/11/2022,ZZH716229,1,833,Egbert Taylor Ltd,182020,Environmental Services Waste Management,Waste Management Equipment,Services to Place,Bulk Container,"8,020.08",400401,10883
29/11/2022,ZZH716229,2,833,Egbert Taylor Ltd,182020,Environmental Services Waste Management,Waste Management Equipment,Services to Place,Bulk Container,"2,200.00",400401,10883
29/11/2022,ZZH716229,3,833,Egbert Taylor Ltd,182020,Environmental Services Waste Management,Waste Management Equipment,Services to Place,Bulk Container,"6,427.68",400401,10883
29/11/2022,ZZH716229,4,833,Egbert Taylor Ltd,182020,Environmental Services Waste Management,Waste Management Equipment,Services to Place,Bulk Container,"6,125.47",400401,10883
29/11/2022,ZZH716247,1,1816,Seashell Trust,320000,Social Community Care Supplies & Services  ,Third party payments - Private/Voluntary Sector,Services to People,Top-up Fund Post 16,"521,233.09",402403,12724
29/11/2022,ZZH716248,1,1820,Aquinas College,320000,Social Community Care Supplies & Services  ,Third party payments - Private/Voluntary Sector,Services to People,Top-up Fund Post 16,"479,514.51",402403,12724
29/11/2022,ZZH716249,1,14595,The Growth Company,320000,Social Community Care Supplies & Services  ,Third party payments - Private/Voluntary Sector,Services to People,Top-up Fund Post 16,"15,103.39",402403,12724
29/11/2022,ZZH716250,1,13264,Access to Music Ltd t/a Access,320000,Social Community Care Supplies & Services  ,Third party payments - Private/Voluntary Sector,Services to People,Top-up Fund Post 16,"8,652.99",402403,12724
29/11/2022,ZZH716251,1,7280,Works 4U Support Services Ltd,320000,Social Community Care Supplies & Services  ,Third party payments - Private/Voluntary Sector,Services to People,Top-up Fund Post 16,"40,508.01",402403,12724
29/11/2022,ZZH716252,1,1697,David Lewis Centre,320000,Social Community Care Supplies & Services  ,Third party payments - Private/Voluntary Sector,Services to People,Top-up Fund Post 16,"43,113.67",402403,12724
29/11/2022,ZZH716253,1,4316,Reaseheath College,320000,Social Community Care Supplies & Services  ,Third party payments - Private/Voluntary Sector,Services to People,Top-up Fund Post 16,"10,296.60",402403,12724
30/11/2022,ZZH716302,1,683,AECOM Limited,150000,Consultancy   ,Professional Fees,#N/A,#N/A,"174,307.50",401007,C.01507.202
30/11/2022,ZZH716303,1,12269,PENARTH GROUP,261500,Human Resources Training & Conferences ,Fees and Charges,Services to People,SEN Independent Sch,"14,261.45",401024,10372
30/11/2022,ZZH716304,1,1572,Theraposture Ltd,181800,Environmental Services Technical Equipment ,Furniture and Equipment,Services to People,SEN Equipment,"7,805.20",400110,10324
30/11/2022,ZZH716306,1,14243,Keys PCE Ltd,261500,Human Resources Training & Conferences ,Fees and Charges,Services to People,SEN Independent Sch,"18,788.25",401024,10372
30/11/2022,ZZH716307,1,14243,Keys PCE Ltd,261500,Human Resources Training & Conferences ,Fees and Charges,Services to People,SEN Independent Sch,"18,788.25",401024,10372
30/11/2022,ZZH716316,1,14737,Hatters Project Ltd,290000,Arts & Leisure Services  ,Publicity and Promotion,Services to People,GMCA CS Grant,"5,511.00",401801,11505
30/11/2022,ZZH716324,1,10897,Three Sixty SHG Ltd,390000,"Works - Construction, Repair & Maintenance  ",Repairs and Maintenance,Corporate and Support Services,Public Libraries Gen,"8,704.82",200123,11329
30/11/2022,ZZH716324,2,10897,Three Sixty SHG Ltd,390000,"Works - Construction, Repair & Maintenance  ",Repairs and Maintenance,Corporate and Support Services,Public Libraries Gen,"2,255.85",200123,11329
30/11/2022,ZZH716324,3,10897,Three Sixty SHG Ltd,390000,"Works - Construction, Repair & Maintenance  ",Repairs and Maintenance,Corporate and Support Services,Public Libraries Gen,287.35,200123,11329
30/11/2022,ZZH716324,4,10897,Three Sixty SHG Ltd,390000,"Works - Construction, Repair & Maintenance  ",Repairs and Maintenance,Corporate and Support Services,Public Libraries Gen,50.28,200123,11329
01/12/2022,ZZH716349,1,7852,Cheshire East Council,390000,Supplies and services,Supplies and services,#N/A,#N/A,"30,242.48",401600,C.00880.203
01/12/2022,ZZH716350,1,6967,Wilde Consultants Ltd,390000,Supplies and services,Supplies and services,Services to Place,Network Assets Staff,"28,620.00",401600,11959
01/12/2022,ZZH716351,1,6967,Wilde Consultants Ltd,390000,Supplies and services,Supplies and services,Services to Place,Network Assets Staff,"28,620.00",401600,11959
01/12/2022,ZZH716352,1,6967,Wilde Consultants Ltd,390000,Supplies and services,Supplies and services,Services to Place,Network Assets Staff,"47,000.00",401600,11959
01/12/2022,ZZH716353,1,82,Marwood Electrical Company Ltd,390000,"Works - Construction, Repair & Maintenance  ",Capital Expenditure - Works,#N/A,#N/A,"3,990.80",200304,C.01220.203
01/12/2022,ZZH716353,2,82,Marwood Electrical Company Ltd,390000,"Works - Construction, Repair & Maintenance  ",Capital Expenditure - Works,#N/A,#N/A,"18,357.68",200304,C.01220.203
01/12/2022,ZZH716353,3,82,Marwood Electrical Company Ltd,390000,"Works - Construction, Repair & Maintenance  ",Capital Expenditure - Works,#N/A,#N/A,"18,357.68",200304,C.01220.203
01/12/2022,ZZH716353,4,82,Marwood Electrical Company Ltd,390000,"Works - Construction, Repair & Maintenance  ",Capital Expenditure - Works,#N/A,#N/A,"89,393.92",200304,C.01220.203
01/12/2022,ZZH716353,5,82,Marwood Electrical Company Ltd,390000,"Works - Construction, Repair & Maintenance  ",Capital Expenditure - Works,#N/A,#N/A,"9,671.64",200304,C.01220.203
01/12/2022,ZZH716353,6,82,Marwood Electrical Company Ltd,390000,"Works - Construction, Repair & Maintenance  ",Capital Expenditure - Works,#N/A,#N/A,"18,337.62",200304,C.01220.203
01/12/2022,ZZH716353,7,82,Marwood Electrical Company Ltd,390000,"Works - Construction, Repair & Maintenance  ",Capital Expenditure - Works,#N/A,#N/A,"29,817.66",200304,C.01220.203
01/12/2022,ZZH716354,1,683,AECOM Limited,150000,Consultancy   ,Professional Fees,#N/A,#N/A,"65,349.00",401007,C.00620.201
01/12/2022,ZZH716355,1,6967,Wilde Consultants Ltd,390000,Supplies and services,Supplies and services,Services to Place,Network Assets Staff,"47,700.00",401600,11959
01/12/2022,ZZH716365,1,3763,IDOX Software Ltd,270000,Information Communication Technology  ,Information and Communications Technology,Services to Place,Planning,"5,900.00",402001,12150
01/12/2022,ZZH716375,1,3529,Totally Local Company Ltd,390000,"Works - Construction, Repair & Maintenance  ",Capital Expenditure - Works,#N/A,#N/A,"10,301.34",200304,C.01433.203
01/12/2022,ZZH716377,1,3529,Totally Local Company Ltd,391114,"Works - Construction, Repair & Maintenance Buildings Surveys",Capital Expenditure - Fees,#N/A,#N/A,"6,842.50",200316,C.01565.202
01/12/2022,ZZH716384,1,15446,Korn Ferry (UK) Ltd,150000,Consultancy   ,Professional Fees,Corporate and Support Services,POD Core Staffing,"35,480.00",401007,12590
02/12/2022,ZZH716455,1,9019,The Knowledge Academy,260000,Human Resources  ,Staff Training,Corporate and Support Services,Strategy & Design,"7,350.00",102020,12642
02/12/2022,ZZH716456,1,3188,NEC Software Solutions UK Ltd,380000,Vehicle Management  ,Driving and Vehicle Licences,Corporate and Support Services,Driver Assessment,"6,080.00",300120,11113
05/12/2022,ZZH716465,1,3529,Totally Local Company Ltd,240000,Horticultural  ,Grounds Maintenance,#N/A,#N/A,"35,000.00",202032,C.10775
05/12/2022,ZZH716506,1,6748,GEORGE COX & SONS LTD,390000,Supplies and services,Supplies and services,#N/A,#N/A,"65,446.93",401600,C.01433.203
06/12/2022,ZZH716550,1,7025,CBRE Limited,150000,Consultancy   ,Professional Fees,Services to Place,Stockport Exch.Phase,"8,000.00",401020,13085
06/12/2022,ZZH716557,1,35,CBC Computer Systems Ltd,270000,Information Communication Technology  ,Information and Communications Technology,Services to People,SC - Care Matters,"5,950.00",402001,11768
06/12/2022,ZZH716558,1,3529,Totally Local Company Ltd,390000,"Works - Construction, Repair & Maintenance  ",Capital Expenditure - Works,#N/A,#N/A,"7,083.13",200304,C.01539.201
06/12/2022,ZZH716560,1,8106,Tarmac Trading Ltd,390000,Supplies and services,Supplies and services,#N/A,#N/A,"54,054.85",401600,C.01539.203
06/12/2022,ZZH716587,1,7025,CBRE Limited,150000,Consultancy   ,Professional Fees,#N/A,#N/A,"27,500.00",401020,C.11006.001
06/12/2022,ZZH716588,1,6116,Atkins Limited,150000,Consultancy   ,Professional Fees,Services to Place,Network Management,"36,432.00",401020,13179
06/12/2022,ZZH716590,1,82,Marwood Electrical Company Ltd,390000,"Works - Construction, Repair & Maintenance  ",Capital Expenditure - Works,#N/A,#N/A,"13,642.52",200304,C.01220.203
06/12/2022,ZZH716590,2,82,Marwood Electrical Company Ltd,390000,"Works - Construction, Repair & Maintenance  ",Capital Expenditure - Works,#N/A,#N/A,"13,642.52",200304,C.01220.203
07/12/2022,ZZH716602,1,7025,CBRE Limited,150000,Consultancy   ,Professional Fees,Services to Place,Merseyway Shop Ctre,"43,820.00",401020,12866
07/12/2022,ZZH716602,2,7025,CBRE Limited,150000,Consultancy   ,Professional Fees,Services to Place,Merseyway Shop Ctre,"43,820.00",401020,12866
07/12/2022,ZZH716607,1,15453,Natural England,150000,Consultancy   ,Professional Fees,#N/A,#N/A,"13,000.00",401007,C.01507.201
07/12/2022,ZZH716613,1,223,Groundwork Landscapes Ltd,240000,Horticultural  ,Grounds Maintenance,#N/A,#N/A,"7,944.00",202032,C.10775
07/12/2022,ZZH716615,1,1342,UK Container Maintenance Ltd,182020,Environmental Services Waste Management,Waste Management Equipment,Services to Place,Bulk Container,"3,250.00",400401,10883
07/12/2022,ZZH716615,2,1342,UK Container Maintenance Ltd,182020,Environmental Services Waste Management,Waste Management Equipment,Services to Place,Bulk Container,"2,640.00",400401,10883
07/12/2022,ZZH716615,3,1342,UK Container Maintenance Ltd,182020,Environmental Services Waste Management,Waste Management Equipment,Services to Place,Bulk Container,"2,640.00",400401,10883
07/12/2022,ZZH716643,1,15254,PIE: Pursuing Individual Excel,320000,Social Community Care Supplies & Services  ,Third party payments - Private/Voluntary Sector,Services to People,PH - COMF Grant,"10,000.00",402403,13097
07/12/2022,ZZH716655,1,15456,Mind of my Own,999999,Fees and Charges,Fees and Charges,Services to People,GMCA CS Grant,"5,040.00",402404,11505
08/12/2022,ZZH716659,1,9633,Ebony & Ivory Community Organi,320000,Social Community Care Supplies & Services  ,Third party payments - Private/Voluntary Sector,Services to People,EPEC Programme,"10,000.00",500530,13037
08/12/2022,ZZH716682,1,13223,A Pacini Ltd,261400,Human Resources Temporary & Agency Staff ,Agency Staff,Services to Place,Property Client Acct,"5,025.00",100290,12328
08/12/2022,ZZH716683,1,13860,Howard Lynn Property Ltd,261400,Human Resources Temporary & Agency Staff ,Agency Staff,Services to Place,Property Client Acct,"6,943.21",100290,12328
08/12/2022,ZZH716686,1,11715,CBRE,210000,Furniture & Soft Furnishings  ,Furniture and Equipment,#N/A,#N/A,"13,086.00",400115,13194
08/12/2022,ZZH716688,1,364,Sutcliffe Play Ltd,240000,Horticultural  ,Grounds Maintenance,#N/A,#N/A,"5,894.40",202032,C.10775
09/12/2022,ZZH716731,1,270,Manchester Met University,260000,Human Resources  ,Staff Training,Services to Place,Property Client Acct,"6,200.00",102020,12328
09/12/2022,ZZH716740,1,15451,FUTURE EVERYTHING CIC,150000,Consultancy   ,Professional Fees,#N/A,#N/A,"9,600.00",401007,13187
09/12/2022,ZZH716780,1,3529,Totally Local Company Ltd,390000,Supplies and services,Supplies and services,#N/A,#N/A,"92,134.89",401600,C.01539.203
09/12/2022,ZZH716791,1,15385,Mace Cost Consultancy Limited,150000,Consultancy   ,Professional Fees,#N/A,#N/A,"5,312.25",401007,C.01468.201
12/12/2022,ZZH716816,1,1799,Stockport Homes,999999,Fees and Charges,Fees and Charges,Services to People,CYP PH Contracts,"5,000.00",401035,13034
13/12/2022,ZZH716868,1,10216,Cromwell Polythene Limited,182020,Environmental Services Waste Management,Waste Management Equipment,Services to Place,House sacks box bags,"28,558.57",400401,10868
13/12/2022,ZZH716869,1,3529,Totally Local Company Ltd,182000,Environmental Services Waste Management ,Waste Management,Services to Place,Pymnt to contctr R+R,"42,721.00",201800,10856
13/12/2022,ZZH716881,1,7025,CBRE Limited,150000,Consultancy   ,Professional Fees,Services to Place,Merseyway Shop Ctre,"2,000.00",401020,12866
13/12/2022,ZZH716881,2,7025,CBRE Limited,150000,Consultancy   ,Professional Fees,Services to Place,Merseyway Shop Ctre,500.00,401020,12866
13/12/2022,ZZH716881,3,7025,CBRE Limited,150000,Consultancy   ,Professional Fees,Services to Place,Merseyway Shop Ctre,500.00,401020,12866
13/12/2022,ZZH716881,4,7025,CBRE Limited,150000,Consultancy   ,Professional Fees,Services to Place,Merseyway Shop Ctre,"5,000.00",401020,12866
13/12/2022,ZZH716885,1,10926,Inform CPI Ltd,270000,Information Communication Technology  ,Information and Communications Technology,Corporate and Support Services,Bentax,"7,500.00",402001,11139
13/12/2022,ZZH716886,1,3529,Totally Local Company Ltd,390000,Supplies and services,Supplies and services,Services to Place,Traffic & Safety Gen,"5,582.70",401600,12054
13/12/2022,ZZH716891,1,15322,Mosaic Bramall Ltd,110000,Catering  ,Catering Supplies,Corporate and Support Services,Town Hall Events,"5,082.50",400420,11375
13/12/2022,ZZH716903,1,14619,Constellia Public Limited,150000,Consultancy   ,Professional Fees,Services to Place,Food & Safety,"35,000.00",401007,10912
13/12/2022,ZZH716904,1,5321,CHILDREN NORTH EAST,390000,"Works - Construction, Repair & Maintenance  ",Fees and Charges,Services to People,SI - Advisers,"7,640.00",401017,10727
13/12/2022,ZZH716924,1,11466,High Peak School Ltd,261500,Human Resources Training & Conferences ,Fees and Charges,Services to People,SEN Independent Sch,"23,874.03",401024,10372
13/12/2022,ZZH716954,1,15428,TMT Commercial Contractors,390000,Supplies and services,Supplies and services,#N/A,#N/A,"2,516,178.30",401600,C.10932.005
15/12/2022,ZZH717001,1,4272,Civica UK Ltd,150000,Consultancy   ,Professional Fees,Corporate and Support Services,Bentax,"19,300.00",401007,11139
15/12/2022,ZZH717031,1,9894,TLT LLP,280000,Legal Services  ,Legal Fees,#N/A,#N/A,"5,205.25",401016,C.00845.203
15/12/2022,ZZH717033,1,6116,Atkins Limited,150000,Consultancy   ,Professional Fees,#N/A,#N/A,"89,191.04",401007,C.01508.201
15/12/2022,ZZH717034,1,6116,Atkins Limited,150000,Consultancy   ,Professional Fees,#N/A,#N/A,"145,726.93",401007,C.01509.201
15/12/2022,ZZH717037,2,13294,Collective Space,150000,Consultancy   ,Professional Fees,Services to People,CADA grant,"20,645.16",401020,13032
16/12/2022,ZZH717061,1,8733,ELF SOFTWARE LTD,270000,Information Communication Technology  ,Information and Communications Technology,Services to Place,Property Client Acct,"7,086.45",402001,12328
16/12/2022,ZZH717064,1,15410,Gwen Riley Jones Photography,290000,Arts & Leisure Services  ,Publicity and Promotion,Services to Place,Arts Development,"7,800.00",401801,11384
16/12/2022,ZZH717099,1,12479,Jisc Services Ltd,270000,Information Communication Technology  ,Information and Communications Technology,Corporate and Support Services,IT Infrastructure,"6,427.37",402002,11324
16/12/2022,ZZH717099,2,12479,Jisc Services Ltd,270000,Information Communication Technology  ,Information and Communications Technology,Corporate and Support Services,IT Infrastructure,"2,200.00",402002,11324
16/12/2022,ZZH717099,3,12479,Jisc Services Ltd,270000,Information Communication Technology  ,Information and Communications Technology,Corporate and Support Services,IT Infrastructure,"54,467.37",402002,11324
16/12/2022,ZZH717099,4,12479,Jisc Services Ltd,270000,Information Communication Technology  ,Information and Communications Technology,Corporate and Support Services,IT Infrastructure,"2,200.00",402002,11324
19/12/2022,ZZH717117,1,6967,Wilde Consultants Ltd,150000,Consultancy   ,Professional Fees,Services to Place,MS Design Frnwk Staf,"21,942.00",401020,13107
19/12/2022,ZZH717123,1,9957,Marketing Stockport,290000,Arts & Leisure Services  ,Publicity and Promotion,Services to Place,Economic Development,"10,010.00",401801,10103
19/12/2022,ZZH717125,1,13732,SKylight Ltd,320000,Social Community Care Supplies & Services  ,Third party payments - Private/Voluntary Sector,Services to People,H'sehold S'port Fund,"200,000.00",402403,13154
19/12/2022,ZZH717125,2,13732,SKylight Ltd,320000,Social Community Care Supplies & Services  ,Third party payments - Private/Voluntary Sector,Services to People,H'sehold S'port Fund,"20,000.00",402403,13154
19/12/2022,ZZH717126,1,13732,SKylight Ltd,320000,Social Community Care Supplies & Services  ,Third party payments - Private/Voluntary Sector,Services to People,H'sehold S'port Fund,"50,000.00",402403,13154
19/12/2022,ZZH717126,2,13732,SKylight Ltd,320000,Social Community Care Supplies & Services  ,Third party payments - Private/Voluntary Sector,Services to People,H'sehold S'port Fund,"5,000.00",402403,13154
19/12/2022,ZZH717127,1,13732,SKylight Ltd,320000,Social Community Care Supplies & Services  ,Third party payments - Private/Voluntary Sector,Services to People,H'sehold S'port Fund,"20,000.00",402403,13154
19/12/2022,ZZH717127,2,13732,SKylight Ltd,320000,Social Community Care Supplies & Services  ,Third party payments - Private/Voluntary Sector,Services to People,H'sehold S'port Fund,"2,000.00",402403,13154
19/12/2022,ZZH717140,1,14933,Overbury PLC,150000,Consultancy   ,Professional Fees,Services to Place,Stockport Exch.Phase,"114,032.30",401020,13085
19/12/2022,ZZH717142,1,7025,CBRE Limited,150000,Consultancy   ,Professional Fees,Services to Place,MDC Mayoral DC,"7,500.00",401007,13033
19/12/2022,ZZH717143,1,7025,CBRE Limited,150000,Consultancy   ,Professional Fees,Services to Place,MDC Mayoral DC,"7,500.00",401007,13033
19/12/2022,ZZH717144,1,7025,CBRE Limited,150000,Consultancy   ,Professional Fees,Services to Place,Town deal Cheadle,"27,500.00",401020,13057
19/12/2022,ZZH717145,1,7025,CBRE Limited,150000,Consultancy   ,Professional Fees,Services to Place,MDC Mayoral DC,"58,842.80",401007,13033
20/12/2022,ZZH717166,1,13338,Britannic Technologies Ltd,270000,Information Communication Technology  ,Information and Communications Technology,Corporate and Support Services,Contact Centre & FPH,"41,760.00",402001,11065
20/12/2022,ZZH717173,1,1332,Etac Ltd,181800,Environmental Services Technical Equipment ,Furniture and Equipment,Services to People,"Aids, Equip & Maint","19,105.63",400110,11658
20/12/2022,ZZH717207,1,5914,Bolton Council,999999,Third party payments - Public Sector,Third party payments - Public Sector,Services to People,Regional Imp Allianc,"30,692.00",500303,13031
20/12/2022,ZZH717208,1,6702,Cheshire West and Chester Coun,999999,Third party payments - Public Sector,Third party payments - Public Sector,Services to People,Regional Imp Allianc,"10,632.00",500303,13031
20/12/2022,ZZH717209,1,7167,Cheshire East Borough Council.,999999,Third party payments - Public Sector,Third party payments - Public Sector,Services to People,Regional Imp Allianc,"30,692.00",500303,13031
20/12/2022,ZZH717210,1,5032,CUMBRIA COUNTY COUNCIL,999999,Third party payments - Public Sector,Third party payments - Public Sector,Services to People,Regional Imp Allianc,"30,692.00",500303,13031
21/12/2022,ZZH717244,1,3529,Totally Local Company Ltd,390000,"Works - Construction, Repair & Maintenance  ",Capital Expenditure - Works,#N/A,#N/A,"30,986.93",200304,C.01566.203
21/12/2022,ZZH717247,1,9159,TRAFFORD MBC,999999,Third party payments - Public Sector,Third party payments - Public Sector,Services to People,Regional Imp Allianc,"10,632.00",500303,13031
21/12/2022,ZZH717248,1,7472,Oldham Council,999999,Third party payments - Public Sector,Third party payments - Public Sector,Services to People,Regional Imp Allianc,"10,632.00",500303,13031
21/12/2022,ZZH717249,1,7111,KNOWSLEY COUNCIL,999999,Third party payments - Public Sector,Third party payments - Public Sector,Services to People,Regional Imp Allianc,"30,692.00",500303,13031
21/12/2022,ZZH717253,1,8233,MGB Plastics Ltd,182020,Environmental Services Waste Management,Waste Management Equipment,Services to Place,Wheelie Bins,"14,304.00",400401,10864
22/12/2022,ZZH717327,1,658,Disability Stockport,320000,Social Community Care Supplies & Services  ,Third party payments - Private/Voluntary Sector,Services to People,H'sehold S'port Fund,"100,000.00",402403,13154
22/12/2022,ZZH717327,2,658,Disability Stockport,320000,Social Community Care Supplies & Services  ,Third party payments - Private/Voluntary Sector,Services to People,H'sehold S'port Fund,"10,000.00",402403,13154
22/12/2022,ZZH717328,1,1104,Age UK Stockport,320000,Social Community Care Supplies & Services  ,Third party payments - Private/Voluntary Sector,Services to People,H'sehold S'port Fund,"300,000.00",402403,13154
22/12/2022,ZZH717328,2,1104,Age UK Stockport,320000,Social Community Care Supplies & Services  ,Third party payments - Private/Voluntary Sector,Services to People,H'sehold S'port Fund,"30,000.00",402403,13154
22/12/2022,ZZH717329,1,10337,SIGNPOST STOCKPORT for CARERS,320000,Social Community Care Supplies & Services  ,Third party payments - Private/Voluntary Sector,Services to People,H'sehold S'port Fund,"30,000.00",402403,13154
22/12/2022,ZZH717329,2,10337,SIGNPOST STOCKPORT for CARERS,320000,Social Community Care Supplies & Services  ,Third party payments - Private/Voluntary Sector,Services to People,H'sehold S'port Fund,"3,000.00",402403,13154
28/12/2022,ZZH717345,1,14677,Melland High School BFET,170000,Education  ,Third party payments - Public Sector,Services to People,OLA pupils,"9,300.00",500304,10371
29/12/2022,ZZH717361,1,15466,LinkedIn,261300,Human Resources Recruitment & Assessment ,Advertising,Corporate and Support Services,POD Core Staffing,"7,537.50",102040,12590
30/12/2022,ZZH717373,1,13458,Yorkshire Adoption Agency,150000,Consultancy   ,Professional Fees,Services to People,RAA Adoption Count,"5,000.00",401020,12957
30/12/2022,ZZH717389,1,3529,Totally Local Company Ltd,182020,Environmental Services Waste Management,Waste Management Equipment,Services to Place,Wheelie Bins,"15,456.00",400401,10864
15/12/2022,ZZP717015,1,735,Kingfisher Graphics,390000,"Works - Construction, Repair & Maintenance  ",Repairs and Maintenance,Services to Place,Hatworks,"4,900.00",200123,11342
15/12/2022,ZZP717015,2,735,Kingfisher Graphics,390000,"Works - Construction, Repair & Maintenance  ",Repairs and Maintenance,Services to Place,Hatworks,"3,100.00",200123,11342
